Body,Body Name,Date,TransNo,Amount � (Excl VAT),Supplier name,Description,Expense Area,Expense Type,Expense Code,
http://opendatacommunities.org/id/london-borough-council/sutton,London Borough of Sutton,23/12/2021,10005473,2.24, FACEBK ZWDAY93AL2,SPLIT - NOT ALONE IN SUTTON (23.07%),Peoples Services,Publicity,A44266,
http://opendatacommunities.org/id/london-borough-council/sutton,London Borough of Sutton,21/12/2021,10005473,52.80, FACEBK KAKCBAXAL2,SPLIT - ADS - NOT ALONE IN SUTTON (26.4%),Peoples Services,Publicity,A44266,
http://opendatacommunities.org/id/london-borough-council/sutton,London Borough of Sutton,26/12/2021,10005473,140.80, FACEBK Z3KAWBKAL2,SPLIT -  ADS - NOT ALONE IN SUTTON (70.4%),Peoples Services,Publicity,A44266,
http://opendatacommunities.org/id/london-borough-council/sutton,London Borough of Sutton,18/12/2021,10005473,13.77, FACEBK 6W8YSABAL2,SPLIT - NOT ALONE IN SUTTON (6.89%),Peoples Services,Publicity,A44266,
http://opendatacommunities.org/id/london-borough-council/sutton,London Borough of Sutton,17/12/2021,10005473,25.82, AMAZON.CO.UK KT2WI0IH5,LAMINATOR,Health and Wellbeing,Equipment And Materials Purchase,A40000,
http://opendatacommunities.org/id/london-borough-council/sutton,London Borough of Sutton,15/12/2021,10005473,12.49, AMAZON.CO.UK CC2W99EC5,TOYS & EQUIPMENT,Health and Wellbeing,Equipment And Materials Purchase,A40000,
http://opendatacommunities.org/id/london-borough-council/sutton,London Borough of Sutton,15/12/2021,10005473,6.66, AMZNMKTPLACE,HAF BALLOON GLUE,Health and Wellbeing,Equipment And Materials Purchase,A40000,
http://opendatacommunities.org/id/london-borough-council/sutton,London Borough of Sutton,07/12/2021,10005473,165.83, WWW.NONSTOPKIDS.CO.UK,HAF PARTY,Health and Wellbeing,Equipment And Materials Purchase,A40000,
http://opendatacommunities.org/id/london-borough-council/sutton,London Borough of Sutton,06/12/2021,10005473,-23.98, AMZNMKTPLACE AMAZON.CO,AMAZON REFUND,Health and Wellbeing,Equipment And Materials Purchase,A40000,
http://opendatacommunities.org/id/london-borough-council/sutton,London Borough of Sutton,04/12/2021,10005473,8.33, CARD FACTORY,BOOKS,Health and Wellbeing,Equipment And Materials Purchase,A40000,
http://opendatacommunities.org/id/london-borough-council/sutton,London Borough of Sutton,15/12/2021,10005473,29.17, HOBBYCRAFT TRADING LIM,HAF HELIUM,Health and Wellbeing,Equipment And Materials Purchase,A40000,
http://opendatacommunities.org/id/london-borough-council/sutton,London Borough of Sutton,07/12/2021,10005473,19.02, AMZNMKTPLACE,HAF BALLOONS,Health and Wellbeing,Equipment And Materials Purchase,A40000,
http://opendatacommunities.org/id/london-borough-council/sutton,London Borough of Sutton,20/12/2021,10005473,117.04, SAINSBURYS.CO.UK,GROCERIES,Health and Wellbeing,Equipment And Materials Purchase,A40000,
http://opendatacommunities.org/id/london-borough-council/sutton,London Borough of Sutton,28/12/2021,10005473,29.23, ASDA SUPERSTORE,GROCERIES,Health and Wellbeing,Provisions,A41006,
http://opendatacommunities.org/id/london-borough-council/sutton,London Borough of Sutton,06/12/2021,10005473,-104.11, JS ONLINE GROCERY,GROCERIES,Health and Wellbeing,Provisions,A41006,
http://opendatacommunities.org/id/london-borough-council/sutton,London Borough of Sutton,23/12/2021,10005473,71.62, WWW.PAPAJOHNS.CO.UK,PIZZA HAF PROJECT,Health and Wellbeing,Provisions,A41006,
http://opendatacommunities.org/id/london-borough-council/sutton,London Borough of Sutton,14/12/2021,10005473,26.22, TESCO STORE 3235,GROCERIES,Health and Wellbeing,Provisions,A41006,
http://opendatacommunities.org/id/london-borough-council/sutton,London Borough of Sutton,07/12/2021,10005473,-1.85, JS ONLINE GROCERY,GROCERY REFUND,Health and Wellbeing,Provisions,A41006,
http://opendatacommunities.org/id/london-borough-council/sutton,London Borough of Sutton,20/12/2021,10005473,-5.00, JS ONLINE GROCERY,GROCERY REFUND,Health and Wellbeing,Provisions,A41006,
http://opendatacommunities.org/id/london-borough-council/sutton,London Borough of Sutton,23/12/2021,10005473,8.32, TWINKL,TWINKL SUBSCRIPTION,Health and Wellbeing,Equipment And Materials Purchase,A40000,
http://opendatacommunities.org/id/london-borough-council/sutton,London Borough of Sutton,27/11/2021,10005473,29.34, TESCO STORE 3235,GROCERIES,Health and Wellbeing,Provisions,A41006,
http://opendatacommunities.org/id/london-borough-council/sutton,London Borough of Sutton,07/12/2021,10005473,97.61, SAINSBURYS.CO.UK,GROCERIES,Health and Wellbeing,Provisions,A41006,
http://opendatacommunities.org/id/london-borough-council/sutton,London Borough of Sutton,05/12/2021,10005473,101.68, SAINSBURYS.CO.UK,GROCERIES,Health and Wellbeing,Provisions,A41006,
http://opendatacommunities.org/id/london-borough-council/sutton,London Borough of Sutton,28/11/2021,10005473,4.98, POUNDSTRETCHER 897,ARTS & CRAFTS,Health and Wellbeing,Equipment And Materials Purchase,A40000,
http://opendatacommunities.org/id/london-borough-council/sutton,London Borough of Sutton,29/11/2021,10005473,14.15, AMZNMKTPLACE AMAZON.CO,TOYS & EQUIPMENT,Health and Wellbeing,Equipment And Materials Purchase,A40000,
http://opendatacommunities.org/id/london-borough-council/sutton,London Borough of Sutton,30/11/2021,10005473,19.98, AMZNMKTPLACE AMAZON.CO,BALLOONS (HAF),Health and Wellbeing,Equipment And Materials Purchase,A40000,
http://opendatacommunities.org/id/london-borough-council/sutton,London Borough of Sutton,30/11/2021,10005473,-2.07, EBAY COMMERCE UK LTD,EBAY REFUND,Health and Wellbeing,Equipment And Materials Purchase,A40000,
http://opendatacommunities.org/id/london-borough-council/sutton,London Borough of Sutton,30/11/2021,10005473,-4.15, EBAY COMMERCE UK LTD,EBAY REFUND,Health and Wellbeing,Equipment And Materials Purchase,A40000,
http://opendatacommunities.org/id/london-borough-council/sutton,London Borough of Sutton,30/11/2021,10005473,-2.07, EBAY COMMERCE UK LTD,EBAY REFUND,Health and Wellbeing,Equipment And Materials Purchase,A40000,
http://opendatacommunities.org/id/london-borough-council/sutton,London Borough of Sutton,25/11/2021,10005473,24.12, ARGOS LTD,CHRISTMAS TREE,Health and Wellbeing,Equipment And Materials Purchase,A40000,
http://opendatacommunities.org/id/london-borough-council/sutton,London Borough of Sutton,29/11/2021,10005473,10.12, AMZNMKTPLACE,FIRST AID,Health and Wellbeing,Other Supplies & Services,A44291,
http://opendatacommunities.org/id/london-borough-council/sutton,London Borough of Sutton,23/12/2021,10005473,7.47, FACEBK ZWDAY93AL2,SPLIT - COVID FESTIVE ADS (76.93%),Health and Wellbeing,Publicity,A44266,
http://opendatacommunities.org/id/london-borough-council/sutton,London Borough of Sutton,23/12/2021,10005473,24.47, SNAP INC SNAP SNAP ADS,ADS - COVID-19 FESTIVE 2021,Health and Wellbeing,Provider Contract Payments,A44290,
http://opendatacommunities.org/id/london-borough-council/sutton,London Borough of Sutton,06/12/2021,10005473,3.93, FACEBK JY6DS9XAL2,SPLIT - ADS - COVID-19 (1.97%),Health and Wellbeing,Provider Contract Payments,A44290,
http://opendatacommunities.org/id/london-borough-council/sutton,London Borough of Sutton,15/12/2021,10005473,10.00, TIKTOK ADS,ADS - COVID-19 FESTIVE 2021,Health and Wellbeing,Provider Contract Payments,A44290,
http://opendatacommunities.org/id/london-borough-council/sutton,London Borough of Sutton,26/12/2021,10005473,10.96, TIKTOK ADS,ADS - COVID-19 FESTIVE 2021,Health and Wellbeing,Provider Contract Payments,A44290,
http://opendatacommunities.org/id/london-borough-council/sutton,London Borough of Sutton,25/12/2021,10005473,35.53, SNAP INC SNAP SNAP ADS,ADS - COVID-19 FESTIVE 2021,Health and Wellbeing,Provider Contract Payments,A44290,
http://opendatacommunities.org/id/london-borough-council/sutton,London Borough of Sutton,24/12/2021,10005473,32.75, SNAP INC SNAP SNAP ADS,ADS - COVID-19 FESTIVE 2021,Health and Wellbeing,Provider Contract Payments,A44290,
http://opendatacommunities.org/id/london-borough-council/sutton,London Borough of Sutton,29/12/2021,10005473,26.89, SNAP INC SNAP SNAP ADS,ADS - COVID-19 FESTIVE 2021,Health and Wellbeing,Provider Contract Payments,A44290,
http://opendatacommunities.org/id/london-borough-council/sutton,London Borough of Sutton,17/12/2021,10005473,993.90, FLUID BRANDING LIMITED,HAND SANITISERS,Health and Wellbeing,Provider Contract Payments,A44290,
http://opendatacommunities.org/id/london-borough-council/sutton,London Borough of Sutton,17/12/2021,10005473,29.67, SNAP INC SNAP SNAP ADS,ADS - COVID-19 FESTIVE 2021,Health and Wellbeing,Provider Contract Payments,A44290,
http://opendatacommunities.org/id/london-borough-council/sutton,London Borough of Sutton,15/12/2021,10005473,17.16, SNAP INC SNAP SNAP ADS,ADS - COVID-19 FESTIVE 2021,Health and Wellbeing,Provider Contract Payments,A44290,
http://opendatacommunities.org/id/london-borough-council/sutton,London Borough of Sutton,14/12/2021,10005473,3.00, TIKTOK ADS,ADS - COVID-19 FESTIVE 2021,Health and Wellbeing,Provider Contract Payments,A44290,
http://opendatacommunities.org/id/london-borough-council/sutton,London Borough of Sutton,14/12/2021,10005473,3.00, TIKTOK ADS,ADS - COVID-19 FESTIVE 2021,Health and Wellbeing,Provider Contract Payments,A44290,
http://opendatacommunities.org/id/london-borough-council/sutton,London Borough of Sutton,14/12/2021,10005473,3.00, TIKTOK ADS,ADS - COVID-19 FESTIVE 2021,Health and Wellbeing,Provider Contract Payments,A44290,
http://opendatacommunities.org/id/london-borough-council/sutton,London Borough of Sutton,21/12/2021,10005473,107.09, FACEBK KAKCBAXAL2,SPLIT - ADS - COVID-19 FESTIVE 2021 (53.55%),Health and Wellbeing,Provider Contract Payments,A44290,
http://opendatacommunities.org/id/london-borough-council/sutton,London Borough of Sutton,15/12/2021,10005473,10.00, TIKTOK ADS,ADS - COVID-19 FESTIVE 2021,Health and Wellbeing,Provider Contract Payments,A44290,
http://opendatacommunities.org/id/london-borough-council/sutton,London Borough of Sutton,19/12/2021,10005473,25.32, TIKTOK ADS,ADS - COVID-19 FESTIVE 2021,Health and Wellbeing,Provider Contract Payments,A44290,
http://opendatacommunities.org/id/london-borough-council/sutton,London Borough of Sutton,18/12/2021,10005473,97.41, FACEBK 6W8YSABAL2,SPLIT - ADS - COVID-19 FESTIVE 2021 (48.71%),Health and Wellbeing,Provider Contract Payments,A44290,
http://opendatacommunities.org/id/london-borough-council/sutton,London Borough of Sutton,18/12/2021,10005473,38.70, SNAP INC SNAP SNAP ADS,ADS - COVID-19 FESTIVE 2021,Health and Wellbeing,Provider Contract Payments,A44290,
http://opendatacommunities.org/id/london-borough-council/sutton,London Borough of Sutton,26/12/2021,10005473,37.81, SNAP INC SNAP SNAP ADS,ADS - COVID-19 FESTIVE 2021,Health and Wellbeing,Provider Contract Payments,A44290,
http://opendatacommunities.org/id/london-borough-council/sutton,London Borough of Sutton,19/12/2021,10005473,41.19, SNAP INC SNAP SNAP ADS,ADS - COVID-19 FESTIVE 2021,Health and Wellbeing,Provider Contract Payments,A44290,
http://opendatacommunities.org/id/london-borough-council/sutton,London Borough of Sutton,16/12/2021,10005473,10.00, TIKTOK ADS,ADS - COVID-19 FESTIVE 2021,Health and Wellbeing,Provider Contract Payments,A44290,
http://opendatacommunities.org/id/london-borough-council/sutton,London Borough of Sutton,16/12/2021,10005473,23.00, SNAP INC SNAP SNAP ADS,ADS - COVID-19 FESTIVE 2021,Health and Wellbeing,Provider Contract Payments,A44290,
http://opendatacommunities.org/id/london-borough-council/sutton,London Borough of Sutton,17/12/2021,10005473,"3,264.88", FLASHBAY LIMITED,FACE MASKS,Health and Wellbeing,Provider Contract Payments,A44290,
http://opendatacommunities.org/id/london-borough-council/sutton,London Borough of Sutton,22/12/2021,10005473,10.13, SNAP INC SNAP SNAP ADS,ADS - COVID-19 FESTIVE 2021,Health and Wellbeing,Provider Contract Payments,A44290,
http://opendatacommunities.org/id/london-borough-council/sutton,London Borough of Sutton,28/12/2021,10005473,29.87, SNAP INC SNAP SNAP ADS,ADS - COVID-19 FESTIVE 2021,Health and Wellbeing,Provider Contract Payments,A44290,
http://opendatacommunities.org/id/london-borough-council/sutton,London Borough of Sutton,27/12/2021,10005473,40.07, SNAP INC SNAP SNAP ADS,ADS - COVID-19 FESTIVE 2021,Health and Wellbeing,Provider Contract Payments,A44290,
http://opendatacommunities.org/id/london-borough-council/sutton,London Borough of Sutton,26/12/2021,10005473,59.20, FACEBK Z3KAWBKAL2,SPLIT -  ADS - COVID-19 FESTIVE 2021 (29.6%),Health and Wellbeing,Provider Contract Payments,A44290,
http://opendatacommunities.org/id/london-borough-council/sutton,London Borough of Sutton,16/12/2021,10005473,10.00, TIKTOK ADS,ADS - COVID-19 FESTIVE 2021,Resources,Provider Contract Payments,A44290,
http://opendatacommunities.org/id/london-borough-council/sutton,London Borough of Sutton,04/12/2021,10005473,21.00, LINKEDIN-708 0857033,JOB AD - HEALTH INTEGRATION PROGRAMME LEAD,Resources,Advertising - Staff,A15027,
http://opendatacommunities.org/id/london-borough-council/sutton,London Borough of Sutton,03/12/2021,10005473,8.32, SPOTIFY UK,MUSIC FOR WEDDINGS,Resources,Subscriptions,A47010,
http://opendatacommunities.org/id/london-borough-council/sutton,London Borough of Sutton,12/12/2021,10005473,7.67, SAINSBURYS S/MKTS,TISSUES AND ANTI BAC WIPES,Resources,Miscellaneous Expenses,A49000,
http://opendatacommunities.org/id/london-borough-council/sutton,London Borough of Sutton,06/12/2021,10005473,295.00, LBSUTTON,ALCOHOL LICENCE,Resources,Miscellaneous Expenses,A49000,
http://opendatacommunities.org/id/london-borough-council/sutton,London Borough of Sutton,15/12/2021,10005473,7.07, MAILCHIMP    MISC,WEB HOSTING,Resources,IT Software Purchase,A45040,
http://opendatacommunities.org/id/london-borough-council/sutton,London Borough of Sutton,14/12/2021,10005473,257.21, MAILCHIMP    MISC,WEB HOSTING,Resources,IT Software Purchase,A45040,
http://opendatacommunities.org/id/london-borough-council/sutton,London Borough of Sutton,23/12/2021,10005473,150.00, PAYPAL  LOCGOVLAWTV,ONE COPY OF A GUIDE TO LOCAL AUTHORITY COMPANIES AND PARTNERSHIPS (LACAP) FOR 'REDACTED - PERSONAL DATA',Resources,Stationery,A43015,
http://opendatacommunities.org/id/london-borough-council/sutton,London Borough of Sutton,20/12/2021,10005473,35.25, AMZNMKTPLACE,"SPLIT - EVERLASTING COMFORT OFFICE CHAIR SEAT CUSHION PILLOW FOR BACK, COCCYX, & TAILBONE PAIN SUPPORT PAD (87.6%)",Resources,Equipment And Materials Purchase,A40000,
http://opendatacommunities.org/id/london-borough-council/sutton,London Borough of Sutton,20/12/2021,10005473,4.99, AMZNMKTPLACE,BALANCING ENTRY AMOUNT (12.4%),Resources,Equipment And Materials Purchase,A40000,
http://opendatacommunities.org/id/london-borough-council/sutton,London Borough of Sutton,02/12/2021,10005473,15.67, PAYPAL  ADDONS,$19.95 DIGITAL INSPIRATION,Resources,Business Support Support,H10011,
http://opendatacommunities.org/id/london-borough-council/sutton,London Borough of Sutton,01/12/2021,10005473,31.50, PAYPAL  ADDONS,GOOGLE ADD ON 31.50  NOVEMBER,Resources,Business Support Support,H10011,
http://opendatacommunities.org/id/london-borough-council/sutton,London Borough of Sutton,20/12/2021,10005473,0.15, PORTANT.CO,GOOGLE SHEET ADDON PORTANT,Resources,Business Support Support,H10011,
http://opendatacommunities.org/id/london-borough-council/sutton,London Borough of Sutton,19/12/2021,10005473,5.28, PORTANT.CO,GOOGLE SHEET ADDON PORTANT,Resources,Business Support Support,H10011,
http://opendatacommunities.org/id/london-borough-council/sutton,London Borough of Sutton,11/12/2021,10005473,400.00, AMAZON PRIME 271Q86XM5,AMAZON BUSINESS PRIME PLAN (MEDIUM PACKAGE),Resources,Telephones,A45020,
http://opendatacommunities.org/id/london-borough-council/sutton,London Borough of Sutton,07/12/2021,10005473,54.21, NATURES HEALTH BOX,NATURES HEALTH BOX - WOMEN'S NETWORK REQUEST,Resources,Staff Side and Trade Union Activities,A15034,
http://opendatacommunities.org/id/london-borough-council/sutton,London Borough of Sutton,14/12/2021,10005473,24.47, AMZNMKTPLACE,SPLIT - PROFESSIONAL GRADE LAVALIER LAPEL MICROPHONE OMNIDIRECTIONAL MIC WITH EASY CLIP ON SYSTEM PERFECT FOR RECORDING YOUTUBE/INTERVIEW/VIDEO CONFERENCE/POD (100%),Resources,Equipment And Materials Purchase,A40000,
http://opendatacommunities.org/id/london-borough-council/sutton,London Borough of Sutton,14/12/2021,10005473,24.57, AMZNMKTPLACE,"SPLIT - ENDURAX CAMERA TRIPOD 60"" FOR PHONE AND CAMERA EXTENDABLE PHONE TRIPOD FOR RECORDING WITH REMOTE SHUTTER & UNIVERSAL SMARTPHONE MOUNT FOR IPHONE SAMSU (100%)",Resources,Equipment And Materials Purchase,A40000,
http://opendatacommunities.org/id/london-borough-council/sutton,London Borough of Sutton,21/12/2021,10005473,40.11, FACEBK KAKCBAXAL2,SPLIT - SUTTON COMMUNITY AWARDS ADS AND (20.06%),Resources,Publicity,A44266,
http://opendatacommunities.org/id/london-borough-council/sutton,London Borough of Sutton,06/12/2021,10005473,21.07, FACEBK JY6DS9XAL2,SPLIT - ADS - SUTTON COMMUNITY AWARDS (10.54%),Resources,Publicity,A44266,
http://opendatacommunities.org/id/london-borough-council/sutton,London Borough of Sutton,18/12/2021,10005473,88.82, FACEBK 6W8YSABAL2,SPLIT - SUTTON COMMUNITY AWARDS ADS (44.41%),Resources,Publicity,A44266,
http://opendatacommunities.org/id/london-borough-council/sutton,London Borough of Sutton,21/12/2021,10005473,172.13, MAILCHIMP,MAILCHIMP EMAIL DATABASE SUBSCRIPTION,Resources,Subscriptions,A47010,
http://opendatacommunities.org/id/london-borough-council/sutton,London Borough of Sutton,13/12/2021,10005473,0.33, MAILCHIMP,MAILCHIMP DATABASE EMAIL SUBSCRIPTION,Resources,Subscriptions,A47010,
http://opendatacommunities.org/id/london-borough-council/sutton,London Borough of Sutton,12/12/2021,10005473,12.01, CLIPCHAMP.COM,CLIP CHAMP SUBSCRIPTION,Resources,Subscriptions,A47010,
http://opendatacommunities.org/id/london-borough-council/sutton,London Borough of Sutton,08/12/2021,10005473,63.94, ARGOS LTD,CL&G,Resources,"Grants, Contributions & Donations",A47005,
http://opendatacommunities.org/id/london-borough-council/sutton,London Borough of Sutton,10/12/2021,10005473,-399.98, ARGOS LTD,CL&G,Resources,"Grants, Contributions & Donations",A47005,
http://opendatacommunities.org/id/london-borough-council/sutton,London Borough of Sutton,09/12/2021,10005473,314.00, CURRYS ONLINE,CL&G,Resources,"Grants, Contributions & Donations",A47005,
http://opendatacommunities.org/id/london-borough-council/sutton,London Borough of Sutton,09/12/2021,10005473,495.95, ARGOS LTD,CL&G,Resources,"Grants, Contributions & Donations",A47005,
http://opendatacommunities.org/id/london-borough-council/sutton,London Borough of Sutton,08/12/2021,10005473,266.94, ARGOS LTD,CL&G,Resources,"Grants, Contributions & Donations",A47005,
http://opendatacommunities.org/id/london-borough-council/sutton,London Borough of Sutton,08/12/2021,10005473,179.99, ARGOS LTD,CL&G,Resources,"Grants, Contributions & Donations",A47005,
http://opendatacommunities.org/id/london-borough-council/sutton,London Borough of Sutton,10/12/2021,10005473,399.98, ARGOS LTD,CL&G,Resources,"Grants, Contributions & Donations",A47005,
http://opendatacommunities.org/id/london-borough-council/sutton,London Borough of Sutton,24/12/2021,10005473,-234.00, CURRYS ONLINE,CL&G,Resources,"Grants, Contributions & Donations",A47005,
http://opendatacommunities.org/id/london-borough-council/sutton,London Borough of Sutton,24/12/2021,10005473,374.97, CURRYS ONLINE,CL&G,Resources,"Grants, Contributions & Donations",A47005,
http://opendatacommunities.org/id/london-borough-council/sutton,London Borough of Sutton,25/11/2021,10005473,167.95, ARGOS LTD,CL&G,Resources,"Grants, Contributions & Donations",A47005,
http://opendatacommunities.org/id/london-borough-council/sutton,London Borough of Sutton,28/12/2021,10005473,-112.95, ARGOS LTD,CL&G,Resources,"Grants, Contributions & Donations",A47005,
http://opendatacommunities.org/id/london-borough-council/sutton,London Borough of Sutton,03/12/2021,10005473,246.95, ARGOS LTD,CL&G,Resources,"Grants, Contributions & Donations",A47005,
http://opendatacommunities.org/id/london-borough-council/sutton,London Borough of Sutton,17/12/2021,10005473,"7,500.00", CS MORRISONS GIFT CARD,PURCHASE OF MORRISON GIFT VOUCHERS FOR USE IN CRISIS LOANS AND GRANTS,Resources,"Grants, Contributions & Donations",A47005,
http://opendatacommunities.org/id/london-borough-council/sutton,London Borough of Sutton,07/12/2021,10005473,636.94, ARGOS LTD,CL&G,Resources,"Grants, Contributions & Donations",A47005,
http://opendatacommunities.org/id/london-borough-council/sutton,London Borough of Sutton,06/12/2021,10005473,337.95, ARGOS LTD,CL&G,Resources,"Grants, Contributions & Donations",A47005,
http://opendatacommunities.org/id/london-borough-council/sutton,London Borough of Sutton,08/12/2021,10005473,359.98, ARGOS LTD,CL&G,Resources,"Grants, Contributions & Donations",A47005,
http://opendatacommunities.org/id/london-borough-council/sutton,London Borough of Sutton,20/12/2021,10005473,229.99, ARGOS LTD,CL&G,Resources,"Grants, Contributions & Donations",A47005,
http://opendatacommunities.org/id/london-borough-council/sutton,London Borough of Sutton,20/12/2021,10005473,294.00, CURRYS ONLINE,CL&G,Resources,"Grants, Contributions & Donations",A47005,
http://opendatacommunities.org/id/london-borough-council/sutton,London Borough of Sutton,20/12/2021,10005473,133.95, ARGOS LTD,CL&G,Resources,"Grants, Contributions & Donations",A47005,
http://opendatacommunities.org/id/london-borough-council/sutton,London Borough of Sutton,03/12/2021,10005473,279.99, CURRYS ONLINE,CL&G,Resources,"Grants, Contributions & Donations",A47005,
http://opendatacommunities.org/id/london-borough-council/sutton,London Borough of Sutton,21/12/2021,10005473,206.95, ARGOS LTD,CL&G,Resources,"Grants, Contributions & Donations",A47005,
http://opendatacommunities.org/id/london-borough-council/sutton,London Borough of Sutton,21/12/2021,10005473,193.95, ARGOS LTD,CL&G,Resources,"Grants, Contributions & Donations",A47005,
http://opendatacommunities.org/id/london-borough-council/sutton,London Borough of Sutton,21/12/2021,10005473,-195.00, ARGOS LTD,CL&G,Resources,"Grants, Contributions & Donations",A47005,
http://opendatacommunities.org/id/london-borough-council/sutton,London Borough of Sutton,24/12/2021,10005473,463.99, CURRYS ONLINE,CL&G,Resources,"Grants, Contributions & Donations",A47005,
http://opendatacommunities.org/id/london-borough-council/sutton,London Borough of Sutton,21/12/2021,10005473,195.00, ARGOS LTD,CL&G,Resources,"Grants, Contributions & Donations",A47005,
http://opendatacommunities.org/id/london-borough-council/sutton,London Borough of Sutton,21/12/2021,10005473,259.99, CURRYS ONLINE,CL&G,Resources,"Grants, Contributions & Donations",A47005,
http://opendatacommunities.org/id/london-borough-council/sutton,London Borough of Sutton,13/12/2021,10005473,110.00, ARGOS LTD,CL&G,Resources,"Grants, Contributions & Donations",A47005,
http://opendatacommunities.org/id/london-borough-council/sutton,London Borough of Sutton,13/12/2021,10005473,308.94, ARGOS LTD,CL&G,Resources,"Grants, Contributions & Donations",A47005,
http://opendatacommunities.org/id/london-borough-council/sutton,London Borough of Sutton,13/12/2021,10005473,-329.99, ARGOS LTD,CL&G,Resources,"Grants, Contributions & Donations",A47005,
http://opendatacommunities.org/id/london-borough-council/sutton,London Borough of Sutton,23/12/2021,10005473,229.99, ARGOS LTD,CL&G,Resources,"Grants, Contributions & Donations",A47005,
http://opendatacommunities.org/id/london-borough-council/sutton,London Borough of Sutton,22/12/2021,10005473,334.00, CURRYS ONLINE,CL&G,Resources,"Grants, Contributions & Donations",A47005,
http://opendatacommunities.org/id/london-borough-council/sutton,London Borough of Sutton,22/12/2021,10005473,603.95, ARGOS LTD,CL&G,Resources,"Grants, Contributions & Donations",A47005,
http://opendatacommunities.org/id/london-borough-council/sutton,London Borough of Sutton,22/12/2021,10005473,122.95, ARGOS LTD,CL&G,Resources,"Grants, Contributions & Donations",A47005,
http://opendatacommunities.org/id/london-borough-council/sutton,London Borough of Sutton,22/12/2021,10005473,199.00, ARGOS LTD,CL&G,Resources,"Grants, Contributions & Donations",A47005,
http://opendatacommunities.org/id/london-borough-council/sutton,London Borough of Sutton,22/12/2021,10005473,717.95, ARGOS LTD,CL&G,Resources,"Grants, Contributions & Donations",A47005,
http://opendatacommunities.org/id/london-borough-council/sutton,London Borough of Sutton,22/12/2021,10005473,344.00, CURRYS ONLINE,CL&G,Resources,"Grants, Contributions & Donations",A47005,
http://opendatacommunities.org/id/london-borough-council/sutton,London Borough of Sutton,22/12/2021,10005473,563.94, ARGOS LTD,CL&G,Resources,"Grants, Contributions & Donations",A47005,
http://opendatacommunities.org/id/london-borough-council/sutton,London Borough of Sutton,22/12/2021,10005473,112.95, ARGOS LTD,CL&G,Resources,"Grants, Contributions & Donations",A47005,
http://opendatacommunities.org/id/london-borough-council/sutton,London Borough of Sutton,22/12/2021,10005473,406.95, ARGOS LTD,CL&G,Resources,"Grants, Contributions & Donations",A47005,
http://opendatacommunities.org/id/london-borough-council/sutton,London Borough of Sutton,22/12/2021,10005473,259.99, ARGOS LTD,CL&G,Resources,"Grants, Contributions & Donations",A47005,
http://opendatacommunities.org/id/london-borough-council/sutton,London Borough of Sutton,21/12/2021,10005473,319.99, CURRYS ONLINE,CL&G,Resources,"Grants, Contributions & Donations",A47005,
http://opendatacommunities.org/id/london-borough-council/sutton,London Borough of Sutton,21/12/2021,10005473,469.00, CURRYS ONLINE,CL&G,Resources,"Grants, Contributions & Donations",A47005,
http://opendatacommunities.org/id/london-borough-council/sutton,London Borough of Sutton,21/12/2021,10005473,202.95, ARGOS LTD,CL&G,Resources,"Grants, Contributions & Donations",A47005,
http://opendatacommunities.org/id/london-borough-council/sutton,London Borough of Sutton,21/12/2021,10005473,199.00, ARGOS LTD,CL&G,Resources,"Grants, Contributions & Donations",A47005,
http://opendatacommunities.org/id/london-borough-council/sutton,London Borough of Sutton,14/12/2021,10005473,365.00, CURRYS ONLINE,CL&G,Resources,"Grants, Contributions & Donations",A47005,
http://opendatacommunities.org/id/london-borough-council/sutton,London Borough of Sutton,14/12/2021,10005473,314.00, CURRYS ONLINE,CL&G,Resources,"Grants, Contributions & Donations",A47005,
http://opendatacommunities.org/id/london-borough-council/sutton,London Borough of Sutton,13/12/2021,10005473,113.95, ARGOS LTD,CL&G,Resources,"Grants, Contributions & Donations",A47005,
http://opendatacommunities.org/id/london-borough-council/sutton,London Borough of Sutton,13/12/2021,10005473,314.00, CURRYS ONLINE,CL&G,Resources,"Grants, Contributions & Donations",A47005,
http://opendatacommunities.org/id/london-borough-council/sutton,London Borough of Sutton,03/12/2021,10005473,333.95, ARGOS LTD,CL&G,Resources,"Grants, Contributions & Donations",A47005,
http://opendatacommunities.org/id/london-borough-council/sutton,London Borough of Sutton,03/12/2021,10005473,333.95, ARGOS LTD,CL&G,Resources,"Grants, Contributions & Donations",A47005,
http://opendatacommunities.org/id/london-borough-council/sutton,London Borough of Sutton,08/12/2021,10005473,89.00, ARGOS LTD,CL&G,Resources,"Grants, Contributions & Donations",A47005,
http://opendatacommunities.org/id/london-borough-council/sutton,London Borough of Sutton,08/12/2021,10005473,167.95, ARGOS LTD,CL&G,Resources,"Grants, Contributions & Donations",A47005,
http://opendatacommunities.org/id/london-borough-council/sutton,London Borough of Sutton,08/12/2021,10005473,-359.98, ARGOS LTD,CL&G,Resources,"Grants, Contributions & Donations",A47005,
http://opendatacommunities.org/id/london-borough-council/sutton,London Borough of Sutton,07/12/2021,10005473,170.00, ARGOS LTD,CL&G,Resources,"Grants, Contributions & Donations",A47005,
http://opendatacommunities.org/id/london-borough-council/sutton,London Borough of Sutton,07/12/2021,10005473,333.95, ARGOS LTD,CL&G,Resources,"Grants, Contributions & Donations",A47005,
http://opendatacommunities.org/id/london-borough-council/sutton,London Borough of Sutton,07/12/2021,10005473,444.00, CURRYS ONLINE,CL&G,Resources,"Grants, Contributions & Donations",A47005,
http://opendatacommunities.org/id/london-borough-council/sutton,London Borough of Sutton,10/12/2021,10005473,264.00, CURRYS ONLINE,CL&G,Resources,"Grants, Contributions & Donations",A47005,
http://opendatacommunities.org/id/london-borough-council/sutton,London Borough of Sutton,10/12/2021,10005473,399.98, ARGOS LTD,CL&G,Resources,"Grants, Contributions & Donations",A47005,
http://opendatacommunities.org/id/london-borough-council/sutton,London Borough of Sutton,25/11/2021,10005473,199.99, ARGOS LTD,CL&G,Resources,"Grants, Contributions & Donations",A47005,
http://opendatacommunities.org/id/london-borough-council/sutton,London Borough of Sutton,25/11/2021,10005473,229.99, ARGOS LTD,CL&G,Resources,"Grants, Contributions & Donations",A47005,
http://opendatacommunities.org/id/london-borough-council/sutton,London Borough of Sutton,25/11/2021,10005473,125.00, ARGOS LTD,CL&G,Resources,"Grants, Contributions & Donations",A47005,
http://opendatacommunities.org/id/london-borough-council/sutton,London Borough of Sutton,25/11/2021,10005473,252.95, ARGOS LTD,CL&G,Resources,"Grants, Contributions & Donations",A47005,
http://opendatacommunities.org/id/london-borough-council/sutton,London Borough of Sutton,03/12/2021,10005473,568.99, CURRYS ONLINE,CL&G,Resources,"Grants, Contributions & Donations",A47005,
http://opendatacommunities.org/id/london-borough-council/sutton,London Borough of Sutton,01/12/2021,10005473,314.00, CURRYS ONLINE,CL&G,Resources,"Grants, Contributions & Donations",A47005,
http://opendatacommunities.org/id/london-borough-council/sutton,London Borough of Sutton,01/12/2021,10005473,259.99, ARGOS LTD,CL&G,Resources,"Grants, Contributions & Donations",A47005,
http://opendatacommunities.org/id/london-borough-council/sutton,London Borough of Sutton,30/11/2021,10005473,243.95, ARGOS LTD,CL&G,Resources,"Grants, Contributions & Donations",A47005,
http://opendatacommunities.org/id/london-borough-council/sutton,London Borough of Sutton,29/11/2021,10005473,243.95, ARGOS LTD,CL&G,Resources,"Grants, Contributions & Donations",A47005,
http://opendatacommunities.org/id/london-borough-council/sutton,London Borough of Sutton,29/11/2021,10005473,504.98, ARGOS LTD,CL&G,Resources,"Grants, Contributions & Donations",A47005,
http://opendatacommunities.org/id/london-borough-council/sutton,London Borough of Sutton,20/12/2021,10005473,73.82, PARCELFORCE WORLDWIDE,CUSTOMS CHARGES FOR THE IMPORTING OF 40 X BATTERIES FOR THE DIGITAL MICROPHONES FOR COMMITTEE SERVICES.  THERE WERE NOT AVAILABILITY OF BATTERIES ANYWHERE IN THE UK AND DUE TO BREXIT THERE WERE NOT AVAILABLE IN THE EU,Resources,Contingency,A49001,
http://opendatacommunities.org/id/london-borough-council/sutton,London Borough of Sutton,02/12/2021,10005473,16.53, AMAZON.CO.UK X786O4GK5,FIRE ACTION NOTICES REQUIRED FOR CIVIC CENTRE AS PART OF LONDON FIRE BRIGADE SITE VISIT IN DECEMBER 2021.,Resources,Contingency,A49001,
http://opendatacommunities.org/id/london-borough-council/sutton,London Borough of Sutton,22/12/2021,10005473,17.17, AMAZON.CO.UK 6W6E81QO5,ASBESTOS SIGNS REQUIRED FOR DENMARK ROAD BUILDING CLOSURE,Resources,Contingency,A49001,
http://opendatacommunities.org/id/london-borough-council/sutton,London Borough of Sutton,07/12/2021,10005473,21.00, LBSUTTON,TEST TRANSACTION FOR ISSUE WITH LICENSING APPLICATION,Resources,Miscellaneous Expenses,A49000,
http://opendatacommunities.org/id/london-borough-council/sutton,London Borough of Sutton,01/12/2021,10005473,21.00, LBSUTTON,TEST TRANSACTION FOR ISSUE WITH THE LICENSING APPLICATION,Resources,Miscellaneous Expenses,A49000,
http://opendatacommunities.org/id/london-borough-council/sutton,London Borough of Sutton,26/11/2021,10005473,1.50, WWW.GOV.UK,136019 J BULL - PROBATE SEARCH,Resources,Legal Services,A44025,
http://opendatacommunities.org/id/london-borough-council/sutton,London Borough of Sutton,07/12/2021,10005473,3.00, WWW.GOV.UK,PROBATE SEARCH FOR CUST ID 146488 & 145028,Resources,Legal Services,A44025,
http://opendatacommunities.org/id/london-borough-council/sutton,London Borough of Sutton,26/11/2021,10005473,1.50, WWW.GOV.UK,131589 B WHITE - PROBATE SEARCH,Resources,Legal Services,A44025,
http://opendatacommunities.org/id/london-borough-council/sutton,London Borough of Sutton,06/12/2021,10005473,175.00, FACEBK JY6DS9XAL2,SPLIT -  ADS - ARG-3 (87.5%),Development Growth and Regeneration,Publicity,A44266,
http://opendatacommunities.org/id/london-borough-council/sutton,London Borough of Sutton,23/12/2021,10005473,82.50, HOLIDAY INNS,PROVISION OF EMERGENCY ACCOMMODATION FOR A HOMELESS HOUSEHOLD,Environment Housing and Neighbourhoods,Bed & Breakfast,A56000,
http://opendatacommunities.org/id/london-borough-council/sutton,London Borough of Sutton,23/12/2021,10005473,82.50, HOLIDAY INNS,PROVISION OF EMERGENCY ACCOMMODATION FOR A HOMELESS HOUSEHOLD,Environment Housing and Neighbourhoods,Bed & Breakfast,A56000,
http://opendatacommunities.org/id/london-borough-council/sutton,London Borough of Sutton,08/12/2021,10005473,183.00, CHARTERED MANAGEME,CMI MEMBERSHIP (GP),Environment Housing and Neighbourhoods,Staff Professional Membership Fees Non Payroll,A15025,
http://opendatacommunities.org/id/london-borough-council/sutton,London Borough of Sutton,16/12/2021,10005473,132.50, TVLICENSING.CO.UK,A490000 G00371,Peoples Services,Miscellaneous Expenses,A49000,
http://opendatacommunities.org/id/london-borough-council/sutton,London Borough of Sutton,22/12/2021,10005473,7.48, AMZNBUSINESS 7479D1865,SPLIT - BAYLIS & HARDING ELEMENTS LUXURY MARBLE EFFECT BODY & SHOWER TREATS GIFT SET (100%),Peoples Services,Equipment And Materials Purchase,A40000,
http://opendatacommunities.org/id/london-borough-council/sutton,London Borough of Sutton,01/12/2021,10005473,25.00, GEN REGISTER OFFICE,BIRTH CERTIFICATE PAYMENT,Peoples Services,Equipment And Materials Purchase,A40000,
http://opendatacommunities.org/id/london-borough-council/sutton,London Borough of Sutton,01/12/2021,10005473,-25.00, GEN REGISTER OFFICE,BIRTH CERTIFICATE REFUND,Peoples Services,Equipment And Materials Purchase,A40000,
http://opendatacommunities.org/id/london-borough-council/sutton,London Borough of Sutton,22/12/2021,10005473,7.50, AMZNBUSINESS K95ZZ8AU5,"SPLIT - BOMB COSMETICS SANTA BABY HANDMADE WRAPPED BATH & BODY GIFT PACK, CONTAINS 5-PIECES, 610 G (100%)",Peoples Services,Miscellaneous Expenses,A49000,
http://opendatacommunities.org/id/london-borough-council/sutton,London Borough of Sutton,22/12/2021,10005473,8.39, AMZNBUSINESS UB6LQ9DW5,SPLIT - BAYLIS & HARDING BLACK PEPPER & GINSENG LUXURY BATHING DUO GIFT SET (100%),Peoples Services,Miscellaneous Expenses,A49000,
http://opendatacommunities.org/id/london-borough-council/sutton,London Borough of Sutton,22/12/2021,10005473,9.99, AMZNBUSINESS O888Y7R25,"SPLIT - 8 X LARGE BATH BOMBS FROM ZIMPLI GIFTS, HANDMADE FIZZY BUBBLE BATH BOMBS, PERFECT FOR SPA BATH, VEGAN FRIENDLY AND CRUELTY FREE (100%)",Peoples Services,Miscellaneous Expenses,A49000,
http://opendatacommunities.org/id/london-borough-council/sutton,London Borough of Sutton,22/12/2021,10005473,9.99, AMZNMKTPLACE,"SPLIT - HAND CREAM GIFT SET - SPA LUXETIQUE HAND MOISTURISER WITH SHEA BUTTER AND VITAMIN E ,BIRTHDAY GIFTS FOR HER WITH CHERRY BLOSSOM VANILLA AND OCEAN SCEN (100%)",Peoples Services,Miscellaneous Expenses,A49000,
http://opendatacommunities.org/id/london-borough-council/sutton,London Borough of Sutton,22/12/2021,10005473,9.98, AMZNBUSINESS 139QV7P55,"SPLIT - HEATHCOTE & IVORY MEREDITH WING BODY CARE COSMETIC BAG WITH BODY WASH AND LOTION, 0.126 KG (100%)",Peoples Services,Miscellaneous Expenses,A49000,
http://opendatacommunities.org/id/london-borough-council/sutton,London Borough of Sutton,22/12/2021,10005473,8.98, AMZNBUSINESS DW1TA7AE5,SPLIT - BAYLIS & HARDING ELEMENTS LUXURY MARBLE EFFECT BODY & SHOWER TREATS GIFT SET (100%),Peoples Services,Miscellaneous Expenses,A49000,
http://opendatacommunities.org/id/london-borough-council/sutton,London Borough of Sutton,22/12/2021,10005473,8.98, AMZNBUSINESS 4Q7AE1235,SPLIT - BAYLIS & HARDING ELEMENTS LUXURY MARBLE EFFECT BODY & SHOWER TREATS GIFT SET (100%),Peoples Services,Miscellaneous Expenses,A49000,
http://opendatacommunities.org/id/london-borough-council/sutton,London Borough of Sutton,17/12/2021,10005473,11.50, HIGHSTREETVOUCHERS,LOVE2SHOP VOUCHER,Peoples Services,Miscellaneous Expenses,A49000,
http://opendatacommunities.org/id/london-borough-council/sutton,London Borough of Sutton,25/11/2021,10005473,7.79, MCDONALD S RESTAURANT,MC ACTIVITY,Peoples Services,Miscellaneous Expenses,A49000,
http://opendatacommunities.org/id/london-borough-council/sutton,London Borough of Sutton,22/12/2021,10005473,9.99, AMZNMKTPLACE AMAZON.CO,"SPLIT - HAND CREAM GIFT SET - SPA LUXETIQUE HAND MOISTURISER WITH SHEA BUTTER AND VITAMIN E ,BIRTHDAY GIFTS FOR HER WITH CHERRY BLOSSOM VANILLA AND OCEAN SCEN (100%)",Peoples Services,Miscellaneous Expenses,A49000,
http://opendatacommunities.org/id/london-borough-council/sutton,London Borough of Sutton,20/12/2021,10005473,11.50, HIGHSTREETVOUCHERS,GIFT CARD PURCHASE,Peoples Services,Miscellaneous Expenses,A49000,
http://opendatacommunities.org/id/london-borough-council/sutton,London Borough of Sutton,17/12/2021,10005473,11.50, HIGHSTREETVOUCHERS,GIFT CARD PURCHASE,Peoples Services,Miscellaneous Expenses,A49000,
http://opendatacommunities.org/id/london-borough-council/sutton,London Borough of Sutton,17/12/2021,10005473,11.50, HIGHSTREETVOUCHERS,GIFT CARD PURCHASE,Peoples Services,Miscellaneous Expenses,A49000,
http://opendatacommunities.org/id/london-borough-council/sutton,London Borough of Sutton,17/12/2021,10005473,11.50, HIGHSTREETVOUCHERS,GIFT CARD PURCHASE,Peoples Services,Miscellaneous Expenses,A49000,
http://opendatacommunities.org/id/london-borough-council/sutton,London Borough of Sutton,17/12/2021,10005473,11.50, HIGHSTREETVOUCHERS,GIFT CARD PURCHASE,Peoples Services,Miscellaneous Expenses,A49000,
http://opendatacommunities.org/id/london-borough-council/sutton,London Borough of Sutton,17/12/2021,10005473,11.50, HIGHSTREETVOUCHERS,GIFT CARD PURCHASE,Peoples Services,Miscellaneous Expenses,A49000,
http://opendatacommunities.org/id/london-borough-council/sutton,London Borough of Sutton,17/12/2021,10005473,11.50, HIGHSTREETVOUCHERS,GIFT CARD PURCHASE,Peoples Services,Miscellaneous Expenses,A49000,
http://opendatacommunities.org/id/london-borough-council/sutton,London Borough of Sutton,16/12/2021,10005473,10.99, ONE4ALL,GIFT CARD PAYMENT,Peoples Services,Miscellaneous Expenses,A49000,
http://opendatacommunities.org/id/london-borough-council/sutton,London Borough of Sutton,16/12/2021,10005473,10.99, ONE4ALL,GIFT CARD PAYMENT,Peoples Services,Miscellaneous Expenses,A49000,
http://opendatacommunities.org/id/london-borough-council/sutton,London Borough of Sutton,16/12/2021,10005473,10.99, ONE4ALL,GIFT CARD PURCHASE,Peoples Services,Miscellaneous Expenses,A49000,
http://opendatacommunities.org/id/london-borough-council/sutton,London Borough of Sutton,16/12/2021,10005473,10.99, ONE4ALL,GIFT CARD PAYMENT,Peoples Services,Miscellaneous Expenses,A49000,
http://opendatacommunities.org/id/london-borough-council/sutton,London Borough of Sutton,16/12/2021,10005473,10.99, ONE4ALL,GIFT CARD PAYMENT,Peoples Services,Miscellaneous Expenses,A49000,
http://opendatacommunities.org/id/london-borough-council/sutton,London Borough of Sutton,30/11/2021,10005473,18.73, SAINSBURYS S/MKTS,MC GROCERIES,Peoples Services,Miscellaneous Expenses,A49000,
http://opendatacommunities.org/id/london-borough-council/sutton,London Borough of Sutton,30/11/2021,10005473,20.00, WWW.UTILITA.CO.UK,MC,Peoples Services,Miscellaneous Expenses,A49000,
http://opendatacommunities.org/id/london-borough-council/sutton,London Borough of Sutton,29/11/2021,10005473,79.16, CURRYS ONLINE,MC,Peoples Services,Miscellaneous Expenses,A49000,
http://opendatacommunities.org/id/london-borough-council/sutton,London Borough of Sutton,16/12/2021,10005473,10.99, ONE4ALL,GIFT CARD PAYMENT,Peoples Services,Miscellaneous Expenses,A49000,
http://opendatacommunities.org/id/london-borough-council/sutton,London Borough of Sutton,17/12/2021,10005473,11.50, HIGHSTREETVOUCHERS,LOVE2SHOP VOUCHER,Peoples Services,Miscellaneous Expenses,A49000,
http://opendatacommunities.org/id/london-borough-council/sutton,London Borough of Sutton,16/12/2021,10005473,10.99, ONE4ALL,ONE4ALL VOUCHER,Peoples Services,Miscellaneous Expenses,A49000,
http://opendatacommunities.org/id/london-borough-council/sutton,London Borough of Sutton,16/12/2021,10005473,10.99, ONE4ALL,ONE4ALL VOUCHER,Peoples Services,Miscellaneous Expenses,A49000,
http://opendatacommunities.org/id/london-borough-council/sutton,London Borough of Sutton,16/12/2021,10005473,10.99, ONE4ALL,ONE4ALL VOUCHER,Peoples Services,Miscellaneous Expenses,A49000,
http://opendatacommunities.org/id/london-borough-council/sutton,London Borough of Sutton,16/12/2021,10005473,10.99, ONE4ALL,ONE4ALL VOUCHER,Peoples Services,Miscellaneous Expenses,A49000,
http://opendatacommunities.org/id/london-borough-council/sutton,London Borough of Sutton,17/12/2021,10005473,11.50, HIGHSTREETVOUCHERS,LOVE2SHOP VOUCHER,Peoples Services,Miscellaneous Expenses,A49000,
http://opendatacommunities.org/id/london-borough-council/sutton,London Borough of Sutton,23/12/2021,10005473,8.99, AMZNBUSINESS G85KH8XD5,SPLIT - BAYLIS & HARDING CITRUS LIME & MINT INVIGORATING SHOWER TRIO GIFT SET (100%),Peoples Services,Miscellaneous Expenses,A49000,
http://opendatacommunities.org/id/london-borough-council/sutton,London Borough of Sutton,23/12/2021,10005473,8.99, AMZNBUSINESS VO8NE0BZ5,SPLIT - BAYLIS & HARDING CITRUS LIME & MINT INVIGORATING SHOWER TRIO GIFT SET (100%),Peoples Services,Miscellaneous Expenses,A49000,
http://opendatacommunities.org/id/london-borough-council/sutton,London Borough of Sutton,16/12/2021,10005473,10.99, ONE4ALL,ONE4ALL VOUCHER,Peoples Services,Miscellaneous Expenses,A49000,
http://opendatacommunities.org/id/london-borough-council/sutton,London Borough of Sutton,16/12/2021,10005473,10.99, ONE4ALL,LEAVING CARE TEAM - CHRISTMAS VOUCHER,Peoples Services,Miscellaneous Expenses,A49000,
http://opendatacommunities.org/id/london-borough-council/sutton,London Borough of Sutton,16/12/2021,10005473,10.99, ONE4ALL,LEAVING CARE TEAM - CHRISTMAS VOUCHER,Peoples Services,Miscellaneous Expenses,A49000,
http://opendatacommunities.org/id/london-borough-council/sutton,London Borough of Sutton,16/12/2021,10005473,10.99, ONE4ALL,LEAVING CARE TEAM - CHRISTMAS VOUCHER,Peoples Services,Miscellaneous Expenses,A49000,
http://opendatacommunities.org/id/london-borough-council/sutton,London Borough of Sutton,16/12/2021,10005473,10.99, ONE4ALL,LEAVING CARE TEAM - CHRISTMAS VOUCHER,Peoples Services,Miscellaneous Expenses,A49000,
http://opendatacommunities.org/id/london-borough-council/sutton,London Borough of Sutton,20/12/2021,10005473,11.50, HIGHSTREETVOUCHERS,CHRISTMAS VOUCHERS FOR CLA,Peoples Services,Miscellaneous Expenses,A49000,
http://opendatacommunities.org/id/london-borough-council/sutton,London Borough of Sutton,22/12/2021,10005473,9.98, AMZNBUSINESS 7F6UR0H95,"SPLIT - HEATHCOTE & IVORY MEREDITH WING BODY CARE COSMETIC BAG WITH BODY WASH AND LOTION, 0.126 KG (100%)",Peoples Services,Miscellaneous Expenses,A49000,
http://opendatacommunities.org/id/london-borough-council/sutton,London Borough of Sutton,22/12/2021,10005473,9.99, AMZNBUSINESS 876NT85Y5,CHRISTMAS GIFT FOR LEAVING CARE CHILD (100%),Peoples Services,Miscellaneous Expenses,A49000,
http://opendatacommunities.org/id/london-borough-council/sutton,London Borough of Sutton,23/12/2021,10005473,8.99, AMZNBUSINESS 0V2TS3H15,CHRISTMAS GIFT FOR LEAVING CARE CHILD A49000 G03040 (100%),Peoples Services,Miscellaneous Expenses,A49000,
http://opendatacommunities.org/id/london-borough-council/sutton,London Borough of Sutton,22/12/2021,10005473,8.98, AMZNBUSINESS TI30R4DN5,CHRISTMAS GIFT FOR LEAVING CARE CHILD  A49000 G03040 (100%),Peoples Services,Miscellaneous Expenses,A49000,
http://opendatacommunities.org/id/london-borough-council/sutton,London Borough of Sutton,22/12/2021,10005473,8.39, AMZNBUSINESS K01GX1KY5,SPLIT - BAYLIS & HARDING BLACK PEPPER & GINSENG LUXURY BATHING DUO GIFT SET (100%),Peoples Services,Miscellaneous Expenses,A49000,
http://opendatacommunities.org/id/london-borough-council/sutton,London Borough of Sutton,22/12/2021,10005473,9.98, AMZNMKTPLACE,SPLIT - THEGIFTBOX MUG GIFTS FOR WOMEN GIFTS FOR MUM LADIES GRANDMA GIFTS FOR BIRTHDAY CHRISTMAS GIFTS (TWINKLEDEW) (100%),Peoples Services,Miscellaneous Expenses,A49000,
http://opendatacommunities.org/id/london-borough-council/sutton,London Borough of Sutton,17/12/2021,10005473,11.50, HIGHSTREETVOUCHERS,LOVE2SHOP VOUCHER,Peoples Services,Miscellaneous Expenses,A49000,
http://opendatacommunities.org/id/london-borough-council/sutton,London Borough of Sutton,17/12/2021,10005473,11.50, HIGHSTREETVOUCHERS,LOVE2SHOP VOUCHER,Peoples Services,Miscellaneous Expenses,A49000,
http://opendatacommunities.org/id/london-borough-council/sutton,London Borough of Sutton,16/12/2021,10005473,10.99, ONE4ALL,GIFT CARD PURCHASE,Peoples Services,Miscellaneous Expenses,A49000,
http://opendatacommunities.org/id/london-borough-council/sutton,London Borough of Sutton,16/12/2021,10005473,10.99, ONE4ALL,GIFT CARD PURCHASE,Peoples Services,Miscellaneous Expenses,A49000,
http://opendatacommunities.org/id/london-borough-council/sutton,London Borough of Sutton,16/12/2021,10005473,10.99, ONE4ALL,ONE4ALL VOUCHER,Peoples Services,Miscellaneous Expenses,A49000,
http://opendatacommunities.org/id/london-borough-council/sutton,London Borough of Sutton,07/12/2021,10005473,-360.00, ARGOS PURLEY WAY,REFUND JM ERROR,Peoples Services,Miscellaneous Expenses,A49000,
http://opendatacommunities.org/id/london-borough-council/sutton,London Borough of Sutton,05/12/2021,10005473,360.00, ARGOS LTD,JM,Peoples Services,Miscellaneous Expenses,A49000,
http://opendatacommunities.org/id/london-borough-council/sutton,London Borough of Sutton,30/11/2021,10005473,360.00, ARGOS LTD,JM,Peoples Services,Miscellaneous Expenses,A49000,
http://opendatacommunities.org/id/london-borough-council/sutton,London Borough of Sutton,22/12/2021,10005473,9.99, AMZNBUSINESS II4EU11W5,CHRISTMAS GIFT FOR LEAVING CARE CHILD (100%),Peoples Services,Miscellaneous Expenses,A49000,
http://opendatacommunities.org/id/london-borough-council/sutton,London Borough of Sutton,22/12/2021,10005473,8.39, AMZNBUSINESS VX5193YR5,CHRISTMAS GIFT FOR LEAVING CARE CHILD (100%),Peoples Services,Miscellaneous Expenses,A49000,
http://opendatacommunities.org/id/london-borough-council/sutton,London Borough of Sutton,22/12/2021,10005473,9.99, AMZNBUSINESS QT4YQ2LL5,CHRISTMAS GIFT FOR LEAVING CARE CHILD (100%),Peoples Services,Miscellaneous Expenses,A49000,
http://opendatacommunities.org/id/london-borough-council/sutton,London Borough of Sutton,26/12/2021,10005473,8.99, AMZNBUSINESS B87PZ6EK5,CHRISTMAS GIFT FOR LEAVING CARE CHILD A49000 G03040 (100%),Peoples Services,Miscellaneous Expenses,A49000,
http://opendatacommunities.org/id/london-borough-council/sutton,London Borough of Sutton,23/12/2021,10005473,9.98, AMZNBUSINESS 4Y0KV0J15,CHRISTMAS GIFT FOR LEAVING CARE CHILD A49000 G03040 (100%),Peoples Services,Miscellaneous Expenses,A49000,
http://opendatacommunities.org/id/london-borough-council/sutton,London Borough of Sutton,23/12/2021,10005473,9.98, AMZNMKTPLACE AMAZON.CO,CHRISTMAS GIFT FOR LEAVING CARE CHILD A49000 G03040 (100%),Peoples Services,Miscellaneous Expenses,A49000,
http://opendatacommunities.org/id/london-borough-council/sutton,London Borough of Sutton,08/12/2021,10005473,55.45, SAINSBURYS S/MKTS,XMAS PRESENTS YP,Peoples Services,Miscellaneous Expenses,A49000,
http://opendatacommunities.org/id/london-borough-council/sutton,London Borough of Sutton,20/12/2021,10005473,11.50, HIGHSTREETVOUCHERS,CHRISTMAS VOUCHERS FOR CLA,Peoples Services,Miscellaneous Expenses,A49000,
http://opendatacommunities.org/id/london-borough-council/sutton,London Borough of Sutton,20/12/2021,10005473,11.50, HIGHSTREETVOUCHERS,CHRISTMAS VOUCHERS CLA,Peoples Services,Miscellaneous Expenses,A49000,
http://opendatacommunities.org/id/london-borough-council/sutton,London Borough of Sutton,22/12/2021,10005473,8.98, AMZNBUSINESS AK9ZH8W35,CHRISTMAS GIFT FOR LEAVING CARE CHILD A49000 G03040 (100%),Peoples Services,Miscellaneous Expenses,A49000,
http://opendatacommunities.org/id/london-borough-council/sutton,London Borough of Sutton,17/12/2021,10005473,11.50, HIGHSTREETVOUCHERS,CHRISTMAS VOUCHERS FOR CLA,Peoples Services,Miscellaneous Expenses,A49000,
http://opendatacommunities.org/id/london-borough-council/sutton,London Borough of Sutton,17/12/2021,10005473,11.50, HIGHSTREETVOUCHERS,CHRISTMAS VOUCHERS FOR CLA,Peoples Services,Miscellaneous Expenses,A49000,
http://opendatacommunities.org/id/london-borough-council/sutton,London Borough of Sutton,23/12/2021,10005473,9.98, AMZNMKTPLACE,SPLIT - THEGIFTBOX MUG GIFTS FOR WOMEN GIFTS FOR MUM LADIES GRANDMA GIFTS FOR BIRTHDAY CHRISTMAS GIFTS (TWINKLEDEW) (100%),Peoples Services,Miscellaneous Expenses,A49000,
http://opendatacommunities.org/id/london-borough-council/sutton,London Borough of Sutton,17/12/2021,10005473,11.50, HIGHSTREETVOUCHERS,CHRISTMAS VOUCHERS FOR CLA,Peoples Services,Miscellaneous Expenses,A49000,
http://opendatacommunities.org/id/london-borough-council/sutton,London Borough of Sutton,17/12/2021,10005473,11.50, HIGHSTREETVOUCHERS,CHRISTMAS VOUCHER CLA,Peoples Services,Miscellaneous Expenses,A49000,
http://opendatacommunities.org/id/london-borough-council/sutton,London Borough of Sutton,16/12/2021,10005473,10.99, ONE4ALL,LEAVING CARE TEAM - CHRISTMAS VOUCHER,Peoples Services,Miscellaneous Expenses,A49000,
http://opendatacommunities.org/id/london-borough-council/sutton,London Borough of Sutton,16/12/2021,10005473,10.99, ONE4ALL,LEAVING CARE TEAM - CHRISTMAS VOUCHER,Peoples Services,Miscellaneous Expenses,A49000,
http://opendatacommunities.org/id/london-borough-council/sutton,London Borough of Sutton,16/12/2021,10005473,10.99, ONE4ALL,LEAVING CARE TEAM - CHRISTMAS VOUCHER,Peoples Services,Miscellaneous Expenses,A49000,
http://opendatacommunities.org/id/london-borough-council/sutton,London Borough of Sutton,16/12/2021,10005473,10.99, ONE4ALL,LEAVING CARE TEAM - CHRISTMAS VOUCHER,Peoples Services,Miscellaneous Expenses,A49000,
http://opendatacommunities.org/id/london-borough-council/sutton,London Borough of Sutton,14/12/2021,10005473,91.98, AMZNMKTPLACE AMAZON.CO,XMAS PRESENTS YP,Peoples Services,Miscellaneous Expenses,A49000,
http://opendatacommunities.org/id/london-borough-council/sutton,London Borough of Sutton,20/12/2021,10005473,11.50, HIGHSTREETVOUCHERS,CHRISTMAS VOUCHERS FOR CLA,Peoples Services,Miscellaneous Expenses,A49000,
http://opendatacommunities.org/id/london-borough-council/sutton,London Borough of Sutton,20/12/2021,10005473,11.50, HIGHSTREETVOUCHERS,CHRISTMAS VOUCHERS FOR CLA,Peoples Services,Miscellaneous Expenses,A49000,
http://opendatacommunities.org/id/london-borough-council/sutton,London Borough of Sutton,17/12/2021,10005473,11.50, HIGHSTREETVOUCHERS,CHRISTMAS VOUCHERS CLA,Peoples Services,Miscellaneous Expenses,A49000,
http://opendatacommunities.org/id/london-borough-council/sutton,London Borough of Sutton,17/12/2021,10005473,11.50, HIGHSTREETVOUCHERS,CHRISTMAS VOUCHERS FOR CLA,Peoples Services,Miscellaneous Expenses,A49000,
http://opendatacommunities.org/id/london-borough-council/sutton,London Borough of Sutton,17/12/2021,10005473,11.50, HIGHSTREETVOUCHERS,CHRISTMAS VOUCHERS CLA,Peoples Services,Miscellaneous Expenses,A49000,
http://opendatacommunities.org/id/london-borough-council/sutton,London Borough of Sutton,17/12/2021,10005473,11.50, HIGHSTREETVOUCHERS,CHRISTMAS VOUCHERS FOR CLA,Peoples Services,Miscellaneous Expenses,A49000,
http://opendatacommunities.org/id/london-borough-council/sutton,London Borough of Sutton,23/12/2021,10005473,216.00, 24 HOURS CRAYFORD CARS,CLIENT TAXI PAYMENT,Peoples Services,C.C.A Travel & Subsistance,A61010,
http://opendatacommunities.org/id/london-borough-council/sutton,London Borough of Sutton,21/12/2021,10005473,13.50, HIGHSTREETVOUCHERS,HIGH STREET VOUCHERS,Peoples Services,Client Care/Assistance,A61011,
http://opendatacommunities.org/id/london-borough-council/sutton,London Borough of Sutton,21/12/2021,10005473,13.50, HIGHSTREETVOUCHERS,HIGH STREET VOUCHERS,Peoples Services,Client Care/Assistance,A61011,
http://opendatacommunities.org/id/london-borough-council/sutton,London Borough of Sutton,21/12/2021,10005473,13.50, HIGHSTREETVOUCHERS,HIGH STREET VOUCHERS,Peoples Services,Client Care/Assistance,A61011,
http://opendatacommunities.org/id/london-borough-council/sutton,London Borough of Sutton,29/11/2021,10005473,90.00, ARGOS LTD,JB,Peoples Services,Set Up Costs - Children Leaving Care,A61021,
http://opendatacommunities.org/id/london-borough-council/sutton,London Borough of Sutton,03/12/2021,10005473,396.93, ARGOS LTD,SET UP COSTS,Peoples Services,Set Up Costs - Children Leaving Care,A61021,
http://opendatacommunities.org/id/london-borough-council/sutton,London Borough of Sutton,09/12/2021,10005473,19.94, AMZNMKTPLACE,ITEMS NEEDED FOR THE LEAVING CARE PERSON (100%),Peoples Services,Set Up Costs - Children Leaving Care,A61021,
http://opendatacommunities.org/id/london-borough-council/sutton,London Borough of Sutton,10/12/2021,10005473,12.25, AMZNMKTPLACE,ITEMS NEEDED FOR THE LEAVING CARE PERSON (100%),Peoples Services,Set Up Costs - Children Leaving Care,A61021,
http://opendatacommunities.org/id/london-borough-council/sutton,London Borough of Sutton,10/12/2021,10005473,14.99, AMZNMKTPLACE,A61021 G03040 (100%),Peoples Services,Set Up Costs - Children Leaving Care,A61021,
http://opendatacommunities.org/id/london-borough-council/sutton,London Borough of Sutton,12/12/2021,10005473,5.99, AMZNMKTPLACE,ITEMS NEEDED FOR THE LEAVING CARE PERSON (100%),Peoples Services,Set Up Costs - Children Leaving Care,A61021,
http://opendatacommunities.org/id/london-borough-council/sutton,London Borough of Sutton,25/11/2021,10005473,239.99, ARGOS LTD,ARGOS PAYMENT,Peoples Services,Set Up Costs - Children Leaving Care,A61021,
http://opendatacommunities.org/id/london-borough-council/sutton,London Borough of Sutton,29/11/2021,10005473,379.00, ARGOS LTD,RM SET UP,Peoples Services,Set Up Costs - Children Leaving Care,A61021,
http://opendatacommunities.org/id/london-borough-council/sutton,London Borough of Sutton,25/11/2021,10005473,-30.00, CURRYS ONLINE,CURRYS REFUND,Peoples Services,Set Up Costs - Children Leaving Care,A61021,
http://opendatacommunities.org/id/london-borough-council/sutton,London Borough of Sutton,22/12/2021,10005473,258.00, ARGOS LTD,JD SET,Peoples Services,Set Up Costs - Children Leaving Care,A61021,
http://opendatacommunities.org/id/london-borough-council/sutton,London Borough of Sutton,12/11/2021,10005473,-83.33, CURRYS ONLINE,REFUND FOR AN ORDER,Peoples Services,Set Up Costs - Children Leaving Care,A61021,
http://opendatacommunities.org/id/london-borough-council/sutton,London Borough of Sutton,17/12/2021,10005473,42.00, TEAM SPORT KARTING,GO CARTING FOR CLA CHILD,Peoples Services,Miscellaneous Expenses,A49000,
http://opendatacommunities.org/id/london-borough-council/sutton,London Borough of Sutton,25/11/2021,10005473,20.39, AMZNMKTPLACE AMAZON.CO,PERSONAL REQUEST FOR CLIENT (100%),Peoples Services,Miscellaneous Expenses,A49000,
http://opendatacommunities.org/id/london-borough-council/sutton,London Borough of Sutton,20/12/2021,10005473,15.99, AMZNMKTPLACE,ITEMS NEEDED FOR THE LEAVING CARE PERSON (100%),Peoples Services,Miscellaneous Expenses,A49000,
http://opendatacommunities.org/id/london-borough-council/sutton,London Borough of Sutton,20/12/2021,10005473,9.58, HIGHSTREETVOUCHERS,CHRISTMAS PRESENT FOR LCT YOUNG PERSON A49000 G03050,Peoples Services,Miscellaneous Expenses,A49000,
http://opendatacommunities.org/id/london-borough-council/sutton,London Borough of Sutton,20/12/2021,10005473,9.58, HIGHSTREETVOUCHERS,CHRISTMAS PRESENT FOR LCT YOUNG PERSON A49000 G03050,Peoples Services,Miscellaneous Expenses,A49000,
http://opendatacommunities.org/id/london-borough-council/sutton,London Borough of Sutton,20/12/2021,10005473,11.50, HIGHSTREETVOUCHERS,LOVE2SHOP VOUCHER,Peoples Services,Miscellaneous Expenses,A49000,
http://opendatacommunities.org/id/london-borough-council/sutton,London Borough of Sutton,20/12/2021,10005473,11.50, HIGHSTREETVOUCHERS,LOVE2SHOP VOUCHER,Peoples Services,Miscellaneous Expenses,A49000,
http://opendatacommunities.org/id/london-borough-council/sutton,London Borough of Sutton,20/12/2021,10005473,11.50, HIGHSTREETVOUCHERS,LOVE2SHOP VOUCHER,Peoples Services,Miscellaneous Expenses,A49000,
http://opendatacommunities.org/id/london-borough-council/sutton,London Borough of Sutton,19/12/2021,10005473,10.83, AMZNBUSINESS ES5WL9V95,"SPLIT - THE HISTORY OF HEAVY WEIGHT BOXING FEATURING MUHAMMAD ALI, MIKE TYSON, JOE LOUIS, ROCKY MARCIANO, JOE FRAZIER, JACK DEMPSEY, MICHAEL SPINKS, LARRY HOL (100%)",Peoples Services,Miscellaneous Expenses,A49000,
http://opendatacommunities.org/id/london-borough-council/sutton,London Borough of Sutton,23/12/2021,10005473,8.99, AMZNBUSINESS UM17O2AG5,SPLIT - BAYLIS & HARDING CITRUS LIME & MINT INVIGORATING SHOWER TRIO GIFT SET (100%),Peoples Services,Miscellaneous Expenses,A49000,
http://opendatacommunities.org/id/london-borough-council/sutton,London Borough of Sutton,16/12/2021,10005473,67.50, BASEJUMP LONDON LTD,BASEJUMP,Peoples Services,Miscellaneous Expenses,A49000,
http://opendatacommunities.org/id/london-borough-council/sutton,London Borough of Sutton,18/12/2021,10005473,115.83, HOTEL IBIS,HOTEL REQUIRED FOR A VISIT,Peoples Services,Miscellaneous Expenses,A49000,
http://opendatacommunities.org/id/london-borough-council/sutton,London Borough of Sutton,16/12/2021,10005473,9.58, HIGHSTREETVOUCHERS,CHRISTMAS PRESENTS FOR LCT A49000 G03050 9999,Peoples Services,Miscellaneous Expenses,A49000,
http://opendatacommunities.org/id/london-borough-council/sutton,London Borough of Sutton,16/12/2021,10005473,9.58, HIGHSTREETVOUCHERS,CHRISTMAS PRESENTS FOR LCT A49000 G03050 9999,Peoples Services,Miscellaneous Expenses,A49000,
http://opendatacommunities.org/id/london-borough-council/sutton,London Borough of Sutton,20/12/2021,10005473,9.58, HIGHSTREETVOUCHERS,CHRISTMAS PRESENT FOR LCT YOUNG PERSON A49000 G03050,Peoples Services,Miscellaneous Expenses,A49000,
http://opendatacommunities.org/id/london-borough-council/sutton,London Borough of Sutton,20/12/2021,10005473,9.58, HIGHSTREETVOUCHERS,CHRISTMAS GIFT FOR YOUNG PERSON,Peoples Services,Miscellaneous Expenses,A49000,
http://opendatacommunities.org/id/london-borough-council/sutton,London Borough of Sutton,20/12/2021,10005473,9.58, HIGHSTREETVOUCHERS,CHRISTMAS PRESENT FOR LCT YOUNG PERSON A49000 G03050,Peoples Services,Miscellaneous Expenses,A49000,
http://opendatacommunities.org/id/london-borough-council/sutton,London Borough of Sutton,20/12/2021,10005473,9.58, HIGHSTREETVOUCHERS,CHRISTMAS PRESENT FOR LCT YOUNG PERSON A49000 G03050,Peoples Services,Miscellaneous Expenses,A49000,
http://opendatacommunities.org/id/london-borough-council/sutton,London Borough of Sutton,12/12/2021,10005473,39.58, TENPIN.CO.UK,ACTIVITY WITH A YOUNG PERSON,Peoples Services,Miscellaneous Expenses,A49000,
http://opendatacommunities.org/id/london-borough-council/sutton,London Borough of Sutton,20/12/2021,10005473,11.50, HIGHSTREETVOUCHERS,LOVE2SHOP VOUCHER,Peoples Services,Miscellaneous Expenses,A49000,
http://opendatacommunities.org/id/london-borough-council/sutton,London Borough of Sutton,02/12/2021,10005473,310.00, CDER GROUP LTD,PAYING A FINE,Peoples Services,Miscellaneous Expenses,A49000,
http://opendatacommunities.org/id/london-borough-council/sutton,London Borough of Sutton,20/12/2021,10005473,21.05, HOLLYWOOD BOWL,BOWLING,Peoples Services,Miscellaneous Expenses,A49000,
http://opendatacommunities.org/id/london-borough-council/sutton,London Borough of Sutton,20/12/2021,10005473,11.50, HIGHSTREETVOUCHERS,LOVE2SHOP VOUCHER,Peoples Services,Miscellaneous Expenses,A49000,
http://opendatacommunities.org/id/london-borough-council/sutton,London Borough of Sutton,07/12/2021,10005473,17.99, AMZNMKTPLACE,FOLDER REQUIRED FOR A YOUNG PERSON (100%),Peoples Services,Miscellaneous Expenses,A49000,
http://opendatacommunities.org/id/london-borough-council/sutton,London Borough of Sutton,06/12/2021,10005473,11.99, AMZNBUSINESS 6J8WK49W5,BOOKS NEEDED FOR A YOUNG PERSON (100%),Peoples Services,Education Allowance,A60008,
http://opendatacommunities.org/id/london-borough-council/sutton,London Borough of Sutton,26/11/2021,10005473,132.00, HOTEL AT BOOKING.COM,HOTEL STAY,Peoples Services,Approved Lodgings,A61000,
http://opendatacommunities.org/id/london-borough-council/sutton,London Borough of Sutton,14/12/2021,10005473,83.33, TRAVEL PARTNER EXCHANG,HOTEL STAY REQUIRED FOR A VISIT,Peoples Services,Approved Lodgings,A61000,
http://opendatacommunities.org/id/london-borough-council/sutton,London Borough of Sutton,14/12/2021,10005473,99.66, MINICABIT,TAXI REQUIRED FOR A LEAVING CARE YOUNG PERSON,Peoples Services,C.C.A Travel & Subsistance,A61010,
http://opendatacommunities.org/id/london-borough-council/sutton,London Borough of Sutton,02/12/2021,10005473,25.00, SQ  ROSEHILL CARS LTD,CAB ORDER PAYMENT - ROSEHILL CARS,Peoples Services,C.C.A Travel & Subsistance,A61010,
http://opendatacommunities.org/id/london-borough-council/sutton,London Borough of Sutton,21/12/2021,10005473,13.99, AMZNMKTPLACE,ITEMS NEEDED FOR THE THORNTON ROAD HOME (100%),Peoples Services,Equipment And Materials Purchase,A40000,
http://opendatacommunities.org/id/london-borough-council/sutton,London Borough of Sutton,29/11/2021,10005473,28.29, DUNELM,ITEM NEEDED FOR LEAVING CARE PERSON,Peoples Services,Equipment And Materials Purchase,A40000,
http://opendatacommunities.org/id/london-borough-council/sutton,London Borough of Sutton,29/11/2021,10005473,60.00, H2O DRY CLEANERS,WORK NEEDED FOR THORNTON ROAD HOME,Peoples Services,Miscellaneous Expenses,A49000,
http://opendatacommunities.org/id/london-borough-council/sutton,London Borough of Sutton,29/11/2021,10005473,9.99, AMZNMKTPLACE,ITEMS NEEDED FOR THORNTON ROAD,Peoples Services,Miscellaneous Expenses,A49000,
http://opendatacommunities.org/id/london-borough-council/sutton,London Borough of Sutton,30/11/2021,10005473,25.98, AMZNMKTPLACE,ITEMS NEEDED FOR THE THORNTON ROAD HOME (100%),Peoples Services,Miscellaneous Expenses,A49000,
http://opendatacommunities.org/id/london-borough-council/sutton,London Borough of Sutton,29/11/2021,10005473,19.98, AMZNMKTPLACE,ITEM NEEDED FOR THORNTON ROAD,Peoples Services,Miscellaneous Expenses,A49000,
http://opendatacommunities.org/id/london-borough-council/sutton,London Borough of Sutton,20/12/2021,10005473,5.49, AMZNMKTPLACE,ITEMS NEEDED FOR THE THORNTON ROAD HOME (100%),Peoples Services,Miscellaneous Expenses,A49000,
http://opendatacommunities.org/id/london-borough-council/sutton,London Borough of Sutton,20/12/2021,10005473,6.69, AMZNMKTPLACE,ITEMS NEEDED FOR THE THORNTON ROAD HOME (100%),Peoples Services,Miscellaneous Expenses,A49000,
http://opendatacommunities.org/id/london-borough-council/sutton,London Borough of Sutton,23/12/2021,10005473,231.18, CARTRIDGE SAVE,CARTRIDGE,Peoples Services,Miscellaneous Expenses,A49000,
http://opendatacommunities.org/id/london-borough-council/sutton,London Borough of Sutton,07/12/2021,10005473,5.15, AMZNBUSINESS 4U3VH69P5,BOOKS NEEDED FOR A YOUNG PERSON (39.49%),Peoples Services,Miscellaneous Expenses,A49000,
http://opendatacommunities.org/id/london-borough-council/sutton,London Borough of Sutton,07/12/2021,10005473,7.89, AMZNBUSINESS 4U3VH69P5,BOOKS NEEDED FOR A YOUNG PERSON (60.51%),Peoples Services,Miscellaneous Expenses,A49000,
http://opendatacommunities.org/id/london-borough-council/sutton,London Borough of Sutton,07/12/2021,10005473,11.98, AMZNMKTPLACE,ITEMS NEEDED FOR THE THORNTON ROAD HOME (100%),Peoples Services,Miscellaneous Expenses,A49000,
http://opendatacommunities.org/id/london-borough-council/sutton,London Borough of Sutton,07/12/2021,10005473,4.99, AMZNBUSINESS KH0ZU3AE5,BOOKS NEEDED FOR A YOUNG PERSON (100%),Peoples Services,Miscellaneous Expenses,A49000,
http://opendatacommunities.org/id/london-borough-council/sutton,London Borough of Sutton,26/12/2021,10005473,29.00, AMZNBUSINESS F00PI7E35,"SPLIT - ALL-NEW RING CHIME, WHITE (100%)",Peoples Services,Miscellaneous Expenses,A49000,
http://opendatacommunities.org/id/london-borough-council/sutton,London Borough of Sutton,14/12/2021,10005473,43.69, ASDA GROCERIES ONLINE,ASDA SHOPPING FOR YOUNG PERSON,Peoples Services,Miscellaneous Expenses,A49000,
http://opendatacommunities.org/id/london-borough-council/sutton,London Borough of Sutton,09/12/2021,10005473,814.98, SUTTON APPLIANCES,SETTING UP FOR A YOUNG PERSON,Peoples Services,C.C.A Travel & Subsistance,A61010,
http://opendatacommunities.org/id/london-borough-council/sutton,London Borough of Sutton,17/12/2021,10005473,159.90, ZOOM.US 888-799-9666,MONTHLY SUBSCRIPTION 47010 G03100,Peoples Services,Subscriptions,A47010,
http://opendatacommunities.org/id/london-borough-council/sutton,London Borough of Sutton,30/11/2021,10005473,159.90, ZOOM.US 888-799-9666,ZOOM SUBSCRIPTION FOR LARGE TEAM,Peoples Services,Subscriptions,A47010,
http://opendatacommunities.org/id/london-borough-council/sutton,London Borough of Sutton,01/12/2021,10005473,254.00, HM PASSPORT OFFICE,PASSPORT FAST TRACK PAYMENT,Peoples Services,Equipment And Materials Purchase,A40000,
http://opendatacommunities.org/id/london-borough-council/sutton,London Borough of Sutton,21/12/2021,10005473,84.17, POST OFFICE COUNTER,PASSPORT APPLICATION FOR YOUNG PERSON,Peoples Services,Equipment And Materials Purchase,A40000,
http://opendatacommunities.org/id/london-borough-council/sutton,London Borough of Sutton,12/11/2021,10005473,-18.50, GEN REGISTER OFFICE,BIRTH CERTIFICATE REFUND,Peoples Services,Equipment And Materials Purchase,A40000,
http://opendatacommunities.org/id/london-borough-council/sutton,London Borough of Sutton,23/12/2021,10005473,33.00, SUTTON REGISTER OFFICE,BIRTH CERTIFICATE PAYMENT,Peoples Services,Equipment And Materials Purchase,A40000,
http://opendatacommunities.org/id/london-borough-council/sutton,London Borough of Sutton,20/12/2021,10005473,38.33, WANDSWORTH COUNCIL,BIRTH CERT FOR YOUNG PERSON COURT PROCEEDINGS,Peoples Services,Equipment And Materials Purchase,A40000,
http://opendatacommunities.org/id/london-borough-council/sutton,London Borough of Sutton,14/12/2021,10005473,30.00, SEA LIFE LONDON,LONDON SEA LIFE PAYMENT,Peoples Services,Equipment And Materials Purchase,A40000,
http://opendatacommunities.org/id/london-borough-council/sutton,London Borough of Sutton,16/12/2021,10005473,16.67, TESCO ONLINE,ITEMS REQUIRED FOR SUTTON FAMILY CENTRE,Peoples Services,Equipment And Materials Purchase,A40000,
http://opendatacommunities.org/id/london-borough-council/sutton,London Borough of Sutton,15/12/2021,10005473,64.17, SUTTON REGISTER OFFICE,BIRTH CERT REQUIRED FOR COURT PROCEEDINGS,Peoples Services,Equipment And Materials Purchase,A40000,
http://opendatacommunities.org/id/london-borough-council/sutton,London Borough of Sutton,15/12/2021,10005473,204.17, SUTTON REGISTER OFFICE,BIRTH CERT REQUIRED FOR COURT PROCEEDINGS,Peoples Services,Equipment And Materials Purchase,A40000,
http://opendatacommunities.org/id/london-borough-council/sutton,London Borough of Sutton,14/12/2021,10005473,5.29, AMZNMKTPLACE AMAZON.CO,ITEMS NEEDED FOR THE SUTTON FAMILY CENTRE SITE (100%),Peoples Services,Equipment And Materials Purchase,A40000,
http://opendatacommunities.org/id/london-borough-council/sutton,London Borough of Sutton,14/12/2021,10005473,14.00, GEN REGISTER OFFICE,BIRTH CERTIFICATE PAYMENT,Peoples Services,Equipment And Materials Purchase,A40000,
http://opendatacommunities.org/id/london-borough-council/sutton,London Borough of Sutton,16/12/2021,10005473,-58.33, SUTTON REGISTER OFFICE,REFUND CHILDREN WERE NOT BORN IN SUTTON,Peoples Services,Equipment And Materials Purchase,A40000,
http://opendatacommunities.org/id/london-borough-council/sutton,London Borough of Sutton,14/12/2021,10005473,11.00, AMZNBUSINESS 097L35HB5,ITEMS NEEDED FOR THE SUTTON FAMILY CENTRE SITE  A40000 G03120 9999 - AMAZON (100%),Peoples Services,Equipment And Materials Purchase,A40000,
http://opendatacommunities.org/id/london-borough-council/sutton,London Borough of Sutton,14/12/2021,10005473,4.91, AMZNMKTPLACE AMAZON.CO,ITEMS NEEDED FOR THE SUTTON FAMILY CENTRE SITE (41.68%),Peoples Services,Equipment And Materials Purchase,A40000,
http://opendatacommunities.org/id/london-borough-council/sutton,London Borough of Sutton,14/12/2021,10005473,6.87, AMZNMKTPLACE AMAZON.CO,BALANCING ENTRY AMOUNT (58.32%),Peoples Services,Equipment And Materials Purchase,A40000,
http://opendatacommunities.org/id/london-borough-council/sutton,London Borough of Sutton,14/12/2021,10005473,22.99, AMZNMKTPLACE AMAZON.CO,ITEMS NEEDED FOR THE SUTTON FAMILY CENTRE SITE (100%),Peoples Services,Equipment And Materials Purchase,A40000,
http://opendatacommunities.org/id/london-borough-council/sutton,London Borough of Sutton,14/12/2021,10005473,14.95, AMZNMKTPLACE AMAZON.CO,ITEMS NEEDED FOR THE SUTTON FAMILY CENTRE SITE (100%),Peoples Services,Equipment And Materials Purchase,A40000,
http://opendatacommunities.org/id/london-borough-council/sutton,London Borough of Sutton,14/12/2021,10005473,19.21, AMZNBUSINESS EX7KJ8VG5,ITEMS NEEDED FOR THE SUTTON FAMILY CENTRE SITE (100%),Peoples Services,Equipment And Materials Purchase,A40000,
http://opendatacommunities.org/id/london-borough-council/sutton,London Borough of Sutton,16/12/2021,10005473,33.32, TESCO ONLINE,MOBILE PHONE AND DATA REQUIRED FOR CLIENT,Peoples Services,Miscellaneous Expenses,A49000,
http://opendatacommunities.org/id/london-borough-council/sutton,London Borough of Sutton,11/12/2021,10005473,31.75, PREMIER CARS,ITEMS NEEDED FOR A FAMILY,Peoples Services,C.C.A Travel & Subsistance,A61010,
http://opendatacommunities.org/id/london-borough-council/sutton,London Borough of Sutton,11/12/2021,10005473,32.17, PREMIER CARS,ITEMS NEEDED FOR A FAMILY,Peoples Services,C.C.A Travel & Subsistance,A61010,
http://opendatacommunities.org/id/london-borough-council/sutton,London Borough of Sutton,09/12/2021,10005473,15.00, STREET CARS MANCHESTER,TAXI NEEDED FOR FAMILY,Peoples Services,C.C.A Travel & Subsistance,A61010,
http://opendatacommunities.org/id/london-borough-council/sutton,London Borough of Sutton,26/11/2021,10005473,377.33, ETRMYTRIP_UK_LF09OV,FLIGHT PAYMENTS,Peoples Services,C.C.A Travel & Subsistance,A61010,
http://opendatacommunities.org/id/london-borough-council/sutton,London Borough of Sutton,09/12/2021,10005473,16.67, STREET CARS MANCHESTER,TAXI NEEDED FOR FAMILY,Peoples Services,C.C.A Travel & Subsistance,A61010,
http://opendatacommunities.org/id/london-borough-council/sutton,London Borough of Sutton,26/11/2021,10005473,97.68, EXPEDIA 72204376400085,HOTEL PAYMENTS,Peoples Services,C.C.A Travel & Subsistance,A61010,
http://opendatacommunities.org/id/london-borough-council/sutton,London Borough of Sutton,24/12/2021,10005473,296.67, VENTURE TAXI,TAXI REQUIRED FOR CLIENT,Peoples Services,C.C.A Travel & Subsistance,A61010,
http://opendatacommunities.org/id/london-borough-council/sutton,London Borough of Sutton,29/11/2021,10005473,15.00, SQ  ROSEHILL CARS LTD,TRANSPORT REQUIRED FOR A COURT MEETING,Peoples Services,C.C.A Travel & Subsistance,A61010,
http://opendatacommunities.org/id/london-borough-council/sutton,London Borough of Sutton,01/12/2021,10005473,50.00, SQ  ROSEHILL CARS LTD,TAXI REQUIRED FOR A PARENT TO GO HOME,Peoples Services,Client Care/Assistance,A61011,
http://opendatacommunities.org/id/london-borough-council/sutton,London Borough of Sutton,01/12/2021,10005473,14.17, SQ  ROSEHILL CARS LTD,TAXI REQUIRED FOR A PARENT TO GO TO A FAMILY CENTRE,Peoples Services,Client Care/Assistance,A61011,
http://opendatacommunities.org/id/london-borough-council/sutton,London Borough of Sutton,14/12/2021,10005473,485.00, TRAVELHOUSE,TRAVELHOUSE FLIGHT PAYMENT,Peoples Services,C.C.A Travel & Subsistance,A61010,
http://opendatacommunities.org/id/london-borough-council/sutton,London Borough of Sutton,15/12/2021,10005473,"-2,285.00", CORP TVL M52978861,UK ARRIVALS QUARANTINE HOTEL REFUND,Peoples Services,Client Care/Assistance,A61011,
http://opendatacommunities.org/id/london-borough-council/sutton,London Borough of Sutton,14/12/2021,10005473,"2,285.00", CORP TVL M52973421,UK ARRIVALS QUARANTINE HOTEL,Peoples Services,Client Care/Assistance,A61011,
http://opendatacommunities.org/id/london-borough-council/sutton,London Borough of Sutton,26/12/2021,10005473,35.01, FACEBK  J5B989PG32,FACEBOOK ADVERT FOR FOSTERING RECRUITMENT CAMPAIGN,Peoples Services,Recruitment Expenses,A15026,
http://opendatacommunities.org/id/london-borough-council/sutton,London Borough of Sutton,26/11/2021,10005473,68.38, FACEBK  MQZ9G8KH32,FACEBOOK ADVERTISING FOR FOSTERING RECRUITMENT,Peoples Services,Recruitment Expenses,A15026,
http://opendatacommunities.org/id/london-borough-council/sutton,London Borough of Sutton,06/12/2021,10005473,70.00, FACEBK  LFYXE8XG32,FACEBOOK ADVERTISING FOR FOSTERING RECRUITMENT,Peoples Services,Communications,A45025,
http://opendatacommunities.org/id/london-borough-council/sutton,London Borough of Sutton,11/12/2021,10005473,70.00, FACEBK  BPWYV8KH32,FACEBOOK ADVERTISING FOR FOSTERING RECRUITMENT,Peoples Services,Communications,A45025,
http://opendatacommunities.org/id/london-borough-council/sutton,London Borough of Sutton,10/12/2021,10005473,16.50, POUNDLAND LTD 1211,POUNDLAND FOOD PAYMENT,Peoples Services,Equipment And Materials Purchase,A40000,
http://opendatacommunities.org/id/london-borough-council/sutton,London Borough of Sutton,10/12/2021,10005473,4.60, WILKO RETAIL LIMITED,WILKINSONS,Peoples Services,Miscellaneous Expenses,A49000,
http://opendatacommunities.org/id/london-borough-council/sutton,London Borough of Sutton,09/12/2021,10005473,69.97, AMZNBUSINESS N20RA5Y95,NEEDED FOR A YOUNG PERSON (100%),Peoples Services,Equipment And Materials Purchase,A40000,
http://opendatacommunities.org/id/london-borough-council/sutton,London Borough of Sutton,10/12/2021,10005473,105.79, ARGOS LTD,FURNITURE REQUIRED FOR CLIENT,Peoples Services,Furniture - Purchase,A40015,
http://opendatacommunities.org/id/london-borough-council/sutton,London Borough of Sutton,08/12/2021,10005473,666.58, HAMSEYS,FURNITURE REQUIRED FOR CLIENT,Peoples Services,Furniture - Purchase,A40015,
http://opendatacommunities.org/id/london-borough-council/sutton,London Borough of Sutton,15/12/2021,10005473,41.67, ARGOS LTD,ITEMS REQUIRED FOR AN ASYLUM SEEKER WHO IS RESIDING IN THE UK UNTIL STATUS IS CLEARED,Peoples Services,Miscellaneous Expenses,A49000,
http://opendatacommunities.org/id/london-borough-council/sutton,London Borough of Sutton,10/12/2021,10005473,193.54, IKEA LTD 144 CROYDON M,IKEA,Peoples Services,Client Care/Assistance,A61011,
http://opendatacommunities.org/id/london-borough-council/sutton,London Borough of Sutton,12/12/2021,10005473,15.00, ARGOS LTD,ITEMS REQUIRED FOR CLIENT,Peoples Services,Set Up Costs - Children Leaving Care,A61021,
http://opendatacommunities.org/id/london-borough-council/sutton,London Borough of Sutton,12/12/2021,10005473,43.28, ARGOS LTD,ITEMS REQUIRED FOR CLIENT,Peoples Services,Set Up Costs - Children Leaving Care,A61021,
http://opendatacommunities.org/id/london-borough-council/sutton,London Borough of Sutton,07/12/2021,10005473,34.80, STK SHUTTERSTOCK,SHUTTERSTOCK PAYMENT,Peoples Services,Other Supplies & Services,A44291,
http://opendatacommunities.org/id/london-borough-council/sutton,London Borough of Sutton,13/12/2021,10005473,34.90, AMZNMKTPLACE,CHRISTMAS PARTY ITEMS (100%),Peoples Services,Miscellaneous Expenses,A49000,
http://opendatacommunities.org/id/london-borough-council/sutton,London Borough of Sutton,01/12/2021,10005473,34.72, AMZNBUSINESS QA2H72TC5,CHRISTMAS PARTY ITEMS (104.42%),Peoples Services,Miscellaneous Expenses,A49000,
http://opendatacommunities.org/id/london-borough-council/sutton,London Borough of Sutton,01/12/2021,10005473,-1.47, AMZNBUSINESS QA2H72TC5,BALANCING ENTRY AMOUNT (-13.26%),Peoples Services,Miscellaneous Expenses,A49000,
http://opendatacommunities.org/id/london-borough-council/sutton,London Borough of Sutton,01/12/2021,10005473,17.66, AMZNMKTPLACE AMAZON.CO,CHRISTMAS PARTY ITEMS (104.37%),Peoples Services,Miscellaneous Expenses,A49000,
http://opendatacommunities.org/id/london-borough-council/sutton,London Borough of Sutton,01/12/2021,10005473,-0.74, AMZNMKTPLACE AMAZON.CO,BALANCING ENTRY AMOUNT (-13.11%),Peoples Services,Miscellaneous Expenses,A49000,
http://opendatacommunities.org/id/london-borough-council/sutton,London Borough of Sutton,01/12/2021,10005473,39.92, AMZNMKTPLACE,CHRISTMAS PARTY ITEMS (100%),Peoples Services,Miscellaneous Expenses,A49000,
http://opendatacommunities.org/id/london-borough-council/sutton,London Borough of Sutton,30/11/2021,10005473,11.84, AMZNBUSINESS P52NG55D5,CHRISTMAS PARTY ITEMS A49000 G03630 9999 AMAZON (104.23%),Peoples Services,Miscellaneous Expenses,A49000,
http://opendatacommunities.org/id/london-borough-council/sutton,London Borough of Sutton,30/11/2021,10005473,-0.48, AMZNBUSINESS P52NG55D5,BALANCING ENTRY AMOUNT (-12.69%),Peoples Services,Miscellaneous Expenses,A49000,
http://opendatacommunities.org/id/london-borough-council/sutton,London Borough of Sutton,30/11/2021,10005473,8.90, AMZNMKTPLACE,CHRISTMAS PARTY ITEMS (100%),Peoples Services,Miscellaneous Expenses,A49000,
http://opendatacommunities.org/id/london-borough-council/sutton,London Borough of Sutton,30/11/2021,10005473,4.45, AMZNMKTPLACE,CHRISTMAS PARTY ITEMS (100%),Peoples Services,Miscellaneous Expenses,A49000,
http://opendatacommunities.org/id/london-borough-council/sutton,London Borough of Sutton,30/11/2021,10005473,83.93, AMZNMKTPLACE,CHRISTMAS PARTY ITEMS (100%),Peoples Services,Miscellaneous Expenses,A49000,
http://opendatacommunities.org/id/london-borough-council/sutton,London Borough of Sutton,01/12/2021,10005473,52.98, AMZNMKTPLACE AMAZON.CO,CHRISTMAS PARTY ITEMS A49000 G03663 9999 AMAZON (104.46%),Peoples Services,Miscellaneous Expenses,A49000,
http://opendatacommunities.org/id/london-borough-council/sutton,London Borough of Sutton,01/12/2021,10005473,-2.26, AMZNMKTPLACE AMAZON.CO,CHRISTMAS PARTY ITEMS A49000 G03663 9999 AMAZON (-13.38%),Peoples Services,Miscellaneous Expenses,A49000,
http://opendatacommunities.org/id/london-borough-council/sutton,London Borough of Sutton,01/12/2021,10005473,4.99, AMZNMKTPLACE,CHRISTMAS PARTY ITEMS (100%),Peoples Services,Miscellaneous Expenses,A49000,
http://opendatacommunities.org/id/london-borough-council/sutton,London Borough of Sutton,26/12/2021,10005473,-34.90, AMZ EDEN DUTCH BULB CO,REFUND NO LONGER REQUIRED (100%),Peoples Services,Miscellaneous Expenses,A49000,
http://opendatacommunities.org/id/london-borough-council/sutton,London Borough of Sutton,01/12/2021,10005473,5.00, AMZNBUSINESS 3L9RF6415,CHRISTMAS PARTY ITEMS (100%),Peoples Services,Miscellaneous Expenses,A49000,
http://opendatacommunities.org/id/london-borough-council/sutton,London Borough of Sutton,01/12/2021,10005473,34.93, AMZNMKTPLACE,CHRISTMAS PARTY ITEMS (100%),Peoples Services,Miscellaneous Expenses,A49000,
http://opendatacommunities.org/id/london-borough-council/sutton,London Borough of Sutton,07/12/2021,10005473,5.92, AMZNBUSINESS 3D8CY9MF5,CHRISTMAS PARTY ITEMS (104.23%),Peoples Services,Miscellaneous Expenses,A49000,
http://opendatacommunities.org/id/london-borough-council/sutton,London Borough of Sutton,07/12/2021,10005473,-0.24, AMZNBUSINESS 3D8CY9MF5,BALANCING ENTRY AMOUNT (-12.69%),Peoples Services,Miscellaneous Expenses,A49000,
http://opendatacommunities.org/id/london-borough-council/sutton,London Borough of Sutton,07/12/2021,10005473,5.92, AMZNBUSINESS S15458835,CHRISTMAS PARTY ITEMS (104.23%),Peoples Services,Miscellaneous Expenses,A49000,
http://opendatacommunities.org/id/london-borough-council/sutton,London Borough of Sutton,07/12/2021,10005473,-0.24, AMZNBUSINESS S15458835,BALANCING ENTRY AMOUNT (-12.69%),Peoples Services,Miscellaneous Expenses,A49000,
http://opendatacommunities.org/id/london-borough-council/sutton,London Borough of Sutton,15/12/2021,10005473,38.17, TESCO STORES 5999,CHRISTMAS PARTY FOOD A49000 G03663,Peoples Services,Miscellaneous Expenses,A49000,
http://opendatacommunities.org/id/london-borough-council/sutton,London Borough of Sutton,08/12/2021,10005473,258.00, PREMIER INN,PREMIER INN HOTEL PAYMENT,Peoples Services,Client Care/Assistance,A61011,
http://opendatacommunities.org/id/london-borough-council/sutton,London Borough of Sutton,06/12/2021,10005473,60.00, SYMBOLS WORLDWIDE LTD,WIDGET SUBSCRIPTION,Peoples Services,Subscriptions,A47010,
http://opendatacommunities.org/id/london-borough-council/sutton,London Borough of Sutton,20/12/2021,10005473,30.00, WALLINGTON CARS & COUR,WALLINGTON CARS,Peoples Services,Hire of Transport - Non Staff,A32000,
http://opendatacommunities.org/id/london-borough-council/sutton,London Borough of Sutton,30/11/2021,10005473,17.50, WALLINGTON CARS & COUR,TAXI FOR CLLR PASCOE TO ATTEND THE THORNTON'S CHILDREN'S CENTRE ON THE 1ST DECEMBER 2021,Peoples Services,Hire of Transport - Non Staff,A32000,
http://opendatacommunities.org/id/london-borough-council/sutton,London Borough of Sutton,10/12/2021,10005473,83.33, SOUTHDOWN CARS,SOUTHEND TAXI FOR A CLIENT,Peoples Services,C.C.A Travel & Subsistance,A61010,
http://opendatacommunities.org/id/london-borough-council/sutton,London Borough of Sutton,16/12/2021,10005473,47.50, ACE TAXIS,TAXI REQUIRED FOR CLIENT,Peoples Services,C.C.A Travel & Subsistance,A61010,
http://opendatacommunities.org/id/london-borough-council/sutton,London Borough of Sutton,22/12/2021,10005473,119.17, RANK TAXIS ASSOCIATION,TAXI REQUIRED FOR CLIENT,Peoples Services,C.C.A Travel & Subsistance,A61010,
http://opendatacommunities.org/id/london-borough-council/sutton,London Borough of Sutton,21/12/2021,10005473,82.50, THE BURTON HOTEL,HOTEL REQUIRED FOR A VISIT,Peoples Services,Client Care/Assistance,A61011,
http://opendatacommunities.org/id/london-borough-council/sutton,London Borough of Sutton,22/12/2021,10005473,"1,440.00", THE BURTON HOTEL,HOTEL STAY,Peoples Services,Client Care/Assistance,A61011,
http://opendatacommunities.org/id/london-borough-council/sutton,London Borough of Sutton,14/12/2021,10005473,"4,505.85", HOTEL AT BOOKING.COM,BOOKING.COM THREE BEDROOM APARTMENT FOR 3 WEEKS FOR FAMILY - GREEN WEST LOCALITY,Peoples Services,Client Care/Assistance,A61011,
http://opendatacommunities.org/id/london-borough-council/sutton,London Borough of Sutton,21/12/2021,10005473,640.00, HOTEL AT BOOKING.COM,BOOKING.COM,Peoples Services,Client Care/Assistance,A61011,
http://opendatacommunities.org/id/london-borough-council/sutton,London Borough of Sutton,09/12/2021,10005473,110.50, HOTEL ON BOOKING.COM,HOTEL BOOKING PAYMENT,Peoples Services,Client Care/Assistance,A61011,
http://opendatacommunities.org/id/london-borough-council/sutton,London Borough of Sutton,09/12/2021,10005473,658.00, BUTLINS,BUTLINS HOTEL PAYMENT,Peoples Services,Client Care/Assistance,A61011,
http://opendatacommunities.org/id/london-borough-council/sutton,London Borough of Sutton,14/12/2021,10005473,595.00, THE BURTON HOTEL,HOTEL STAY REQUIRED FOR A CLIENT,Peoples Services,Client Care/Assistance,A61011,
http://opendatacommunities.org/id/london-borough-council/sutton,London Borough of Sutton,19/12/2021,10005473,225.90, AMZNMKTPLACE,HEADSET REQUIRED FOR ONLINE MEETINGS A40000 G03840 (100%),Peoples Services,Equipment And Materials Purchase,A40000,
http://opendatacommunities.org/id/london-borough-council/sutton,London Borough of Sutton,14/12/2021,10005473,31.92, OCADO,CHRISTMAS PARTY FOOD,Peoples Services,Miscellaneous Expenses,A49000,
http://opendatacommunities.org/id/london-borough-council/sutton,London Borough of Sutton,06/12/2021,10005473,58.33, WILKO.COM,CHRISTMAS ITEMS,Peoples Services,Miscellaneous Expenses,A49000,
http://opendatacommunities.org/id/london-borough-council/sutton,London Borough of Sutton,16/12/2021,10005473,433.33, PREMIER INN,HOTEL REQUIRED FOR A CLIENT,Peoples Services,Bed & Breakfast,A56000,
http://opendatacommunities.org/id/london-borough-council/sutton,London Borough of Sutton,16/12/2021,10005473,274.17, PREMIER INN,HOTEL REQUIRED FOR A CLIENT,Peoples Services,Bed & Breakfast,A56000,
http://opendatacommunities.org/id/london-borough-council/sutton,London Borough of Sutton,16/12/2021,10005473,388.33, PREMIER INN,HOTEL REQUIRED FOR A CLIENT,Peoples Services,Bed & Breakfast,A56000,
http://opendatacommunities.org/id/london-borough-council/sutton,London Borough of Sutton,06/12/2021,10005473,105.00, SUTTON REGISTER OFFICE,BIRTH CERTIFICATE PAYMENT,Peoples Services,Equipment And Materials Purchase,A40000,
http://opendatacommunities.org/id/london-borough-council/sutton,London Borough of Sutton,16/12/2021,10005473,154.16, ARGOS LTD,ITEMS REQUIRED FOR A CLIENT,Peoples Services,Miscellaneous Expenses,A49000,
http://opendatacommunities.org/id/london-borough-council/sutton,London Borough of Sutton,03/12/2021,10005473,97.37, STORAGEMART UK A-40E2B,STORAGE FOR CLIENT,Peoples Services,Equipment And Materials Purchase,A40000,
http://opendatacommunities.org/id/london-borough-council/sutton,London Borough of Sutton,20/12/2021,10005473,"1,433.27", TRAVELODGE,"1,433.27 A56000 J64100 9999 TRAVELODGE .PDF",Peoples Services,Bed & Breakfast,A56000,
http://opendatacommunities.org/id/london-borough-council/sutton,London Borough of Sutton,20/12/2021,10005473,"1,055.27", TRAVELODGE,"1,055.27 A56000 J64100 9999 TRAVELODGE .PDF",Peoples Services,Bed & Breakfast,A56000,
http://opendatacommunities.org/id/london-borough-council/sutton,London Borough of Sutton,08/12/2021,10005473,"1,808.32", TRAVELODGE,TRAVELODGE HOTEL PAYMENT,Peoples Services,Client Care/Assistance,A61011,
http://opendatacommunities.org/id/london-borough-council/sutton,London Borough of Sutton,01/12/2021,10005473,66.67, ACCESS SUTTON,STORAGE REQUIRED FOR CLIENT,Peoples Services,Client Care/Assistance,A61011,
http://opendatacommunities.org/id/london-borough-council/sutton,London Borough of Sutton,07/12/2021,10005473,192.00, BIG BROWN CARRIER BAG,BAG FOR START PPE,Peoples Services,Health & Safety Equipment,A40080,
http://opendatacommunities.org/id/london-borough-council/sutton,London Borough of Sutton,29/11/2021,10005473,58.29, 2CO.COM ABLEBITS.COM 1,GOOGLE ADD ON SUBSCRIPTION,Peoples Services,Miscellaneous Expenses,A49000,
http://opendatacommunities.org/id/london-borough-council/sutton,London Borough of Sutton,14/12/2021,10005473,211.15, ASDA STORES LTD,EMERGENCY FOOD VOUCHERS FOR START CLIENTS,Peoples Services,Miscellaneous Expenses,A49000,
http://opendatacommunities.org/id/london-borough-council/sutton,London Borough of Sutton,17/12/2021,10005473,418.17, CS MORRISONS GIFT CARD,EMERGENCY FOOD VOUCHERS FOR START CLIENTS,Peoples Services,Miscellaneous Expenses,A49000,
http://opendatacommunities.org/id/london-borough-council/sutton,London Borough of Sutton,14/12/2021,10005473,213.75, HIGHSTREETVOUCHERS,EMERGENCY FOOD VOUCHERS FOR START CLIENTS,Peoples Services,Miscellaneous Expenses,A49000,
http://opendatacommunities.org/id/london-borough-council/sutton,London Borough of Sutton,06/12/2021,10005473,45.00, ALLIUM,FUNERAL WREATH,Peoples Services,Fees -General-Exempt,A92105,
http://opendatacommunities.org/id/london-borough-council/sutton,London Borough of Sutton,15/12/2021,10005473,84.93, COSTCO WHOLESALE #121,COSTCO PURCHASE FOR 'REDACTED - PERSONAL DATA',Peoples Services,Client Activities,A56028,
http://opendatacommunities.org/id/london-borough-council/sutton,London Borough of Sutton,10/12/2021,10005473,41.67, PAYPAL  LEARNINGSKI,FE WEEK ANNUAL SUBSCRIPTION,Health and Wellbeing,Subscriptions,A47010,
http://opendatacommunities.org/id/london-borough-council/sutton,London Borough of Sutton,06/12/2021,10005473,63.74, AMZNMKTPLACE,DUELPORT HOT PLUG IT DEPARTMENT,Health and Wellbeing,IT Software Purchase,A45040,
http://opendatacommunities.org/id/london-borough-council/sutton,London Borough of Sutton,02/12/2021,10005473,16.42, GOOGLE CLOUD EMEA LIMI,GOOGLE CLOUD EMEA NOV 21 4028142858,Health and Wellbeing,Subscriptions,A47010,
http://opendatacommunities.org/id/london-borough-council/sutton,London Borough of Sutton,17/12/2021,10005473,500.00, FACEBK T4G328P6A2,FACEBOOK AD 171221 500.00 REF T4G,Health and Wellbeing,Publicity,A44266,
http://opendatacommunities.org/id/london-borough-council/sutton,London Borough of Sutton,12/12/2021,10005473,500.00, FACEBK JVANF776A2,FACEBOOK AD 121221 500.00 REF JVA,Health and Wellbeing,Publicity,A44266,
http://opendatacommunities.org/id/london-borough-council/sutton,London Borough of Sutton,08/12/2021,10005473,47.99, ADOBE STOCK,ADOBE 071221 47.99,Health and Wellbeing,Publicity,A44266,
http://opendatacommunities.org/id/london-borough-council/sutton,London Borough of Sutton,30/11/2021,10005473,83.43, MAILCHIMP,MAILCHIMP 301121 83.43,Health and Wellbeing,Publicity,A44266,
http://opendatacommunities.org/id/london-borough-council/sutton,London Borough of Sutton,15/12/2021,10005473,122.94, CCF,SPLIT - 'REDACTED - PERSONAL DATA'E EVO MICROLOOK9 (83.33%),Health and Wellbeing,Insurance Claims,A44261,
http://opendatacommunities.org/id/london-borough-council/sutton,London Borough of Sutton,15/12/2021,10005473,30.74, CCF,BALANCING ENTRY AMOUNT (16.67%),Health and Wellbeing,Insurance Claims,A44261,
http://opendatacommunities.org/id/london-borough-council/sutton,London Borough of Sutton,29/11/2021,10005473,-15.72, WWW.FLORISTSUPPLIESUK.,FLORISTRY INVOICE,Health and Wellbeing,Equipment And Materials Purchase,A40000,
http://opendatacommunities.org/id/london-borough-council/sutton,London Borough of Sutton,13/12/2021,10005473,1.45, TESCO STORES 5511,COOKERY,Health and Wellbeing,Equipment And Materials Purchase,A40000,
http://opendatacommunities.org/id/london-borough-council/sutton,London Borough of Sutton,13/12/2021,10005473,18.64, SAINSBURYS S/MKTS,COOKERY,Health and Wellbeing,Equipment And Materials Purchase,A40000,
http://opendatacommunities.org/id/london-borough-council/sutton,London Borough of Sutton,08/12/2021,10005473,13.09, SAINSBURYS S/MKTS,COOKERY,Health and Wellbeing,Equipment And Materials Purchase,A40000,
http://opendatacommunities.org/id/london-borough-council/sutton,London Borough of Sutton,06/12/2021,10005473,13.10, SAINSBURYS S/MKTS,COOKERY,Health and Wellbeing,Equipment And Materials Purchase,A40000,
http://opendatacommunities.org/id/london-borough-council/sutton,London Borough of Sutton,06/12/2021,10005473,17.94, WALLINGTON BARGAIN BUY,COOKERY,Health and Wellbeing,Equipment And Materials Purchase,A40000,
http://opendatacommunities.org/id/london-borough-council/sutton,London Borough of Sutton,01/12/2021,10005473,9.38, LIDL GB LONDON,COOKERY,Health and Wellbeing,Equipment And Materials Purchase,A40000,
http://opendatacommunities.org/id/london-borough-council/sutton,London Borough of Sutton,29/11/2021,10005473,14.95, LIDL GB LONDON,COOKERY,Health and Wellbeing,Equipment And Materials Purchase,A40000,
http://opendatacommunities.org/id/london-borough-council/sutton,London Borough of Sutton,15/12/2021,10005473,10.15, SAINSBURYS S/MKTS,COOKERY,Health and Wellbeing,Equipment And Materials Purchase,A40000,
http://opendatacommunities.org/id/london-borough-council/sutton,London Borough of Sutton,15/12/2021,10005473,26.44, AMAZON.CO.UK 7I9PC8FZ5,SPLIT - ON-SITE GUIDE (BS 7671:2018) (ELECTRICAL REGULATIONS) (100%),Peoples Services,LAC - Education,A44280,
http://opendatacommunities.org/id/london-borough-council/sutton,London Borough of Sutton,09/12/2021,10005473,4.99, AMAZON.CO.UK 084VB93Q5,SPLIT - GCSE ENGLISH LANGUAGE AQA COMPLETE REVISION & PRACTICE - GRADE 9-1 COURSE (WITH ONLINE EDITION): PERFECT FOR CATCH-UP AND THE 2022 AND 2023 EXAMS (CGP (100%),Peoples Services,LAC - Education,A44280,
http://opendatacommunities.org/id/london-borough-council/sutton,London Borough of Sutton,20/12/2021,10005473,10.00, AMAZON.CO.UK RX40Y5P95,SPLIT - AMAZON.CO.UK GIFT CARD IN A SANTA AND RUDOLPH GREETING CARD (100%),Peoples Services,LAC - Education,A44280,
http://opendatacommunities.org/id/london-borough-council/sutton,London Borough of Sutton,20/12/2021,10005473,6.55, AMAZON.CO.UK SB3EK9FX5,SPLIT - I CAPTURE THE CASTLE (100%),Peoples Services,LAC - Education,A44280,
http://opendatacommunities.org/id/london-borough-council/sutton,London Borough of Sutton,20/12/2021,10005473,30.00, AMAZON.CO.UK 771Z50BY5,SPLIT - AMAZON.CO.UK GIFT CARD IN A SANTA AND RUDOLPH GREETING CARD (100%),Peoples Services,LAC - Education,A44280,
http://opendatacommunities.org/id/london-borough-council/sutton,London Borough of Sutton,19/12/2021,10005473,4.99, AMAZON.CO.UK H35HP43V5,SPLIT - HANDWRITING TODAY: BK. 2 (HANDWRITING TODAY) (100%),Peoples Services,LAC - Education,A44280,
http://opendatacommunities.org/id/london-borough-council/sutton,London Borough of Sutton,18/12/2021,10005473,12.16, AMZNMKTPLACE,SPLIT - LONGMAN PHOTO DICTIONARY (81.28%),Peoples Services,LAC - Education,A44280,
http://opendatacommunities.org/id/london-borough-council/sutton,London Borough of Sutton,18/12/2021,10005473,2.80, AMZNMKTPLACE,BALANCING ENTRY AMOUNT (18.72%),Peoples Services,LAC - Education,A44280,
http://opendatacommunities.org/id/london-borough-council/sutton,London Borough of Sutton,20/12/2021,10005473,30.00, AMAZON.CO.UK BH5CN3VW5,SPLIT - AMAZON.CO.UK GIFT CARD IN A SANTA AND RUDOLPH GREETING CARD (100%),Peoples Services,LAC - Education,A44280,
http://opendatacommunities.org/id/london-borough-council/sutton,London Borough of Sutton,20/12/2021,10005473,7.99, AMZNMKTPLACE,SPLIT - HOW TO DRAW (57.36%),Peoples Services,LAC - Education,A44280,
http://opendatacommunities.org/id/london-borough-council/sutton,London Borough of Sutton,20/12/2021,10005473,5.94, AMZNMKTPLACE,"SPLIT - DRAW WITH ROB: THE NUMBER ONE BESTSELLING ART ACTIVITY BOOK FROM INTERNET SENSATION, ROB BIDDULPH (42.64%)",Peoples Services,LAC - Education,A44280,
http://opendatacommunities.org/id/london-borough-council/sutton,London Borough of Sutton,17/12/2021,10005473,21.32, AMZNMKTPLACE,SPLIT - STUDENT'S GUIDE TO THE IET WIRING REGULATIONS (ELECTRICAL REGULATIONS) (100%),Peoples Services,LAC - Education,A44280,
http://opendatacommunities.org/id/london-borough-council/sutton,London Borough of Sutton,20/12/2021,10005473,19.16, AMZNMKTPLACE,"SPLIT - DRAWING SKETCHING PENCIL SET, KIDSPARK 52 PCS ART KIT WITH COLOURING PENCILS SKETCH PENCILS GRAPHITE CHARCOAL PENCIL ERASER SHARPENER IN LARGE ZIPPER (70.16%)",Peoples Services,LAC - Education,A44280,
http://opendatacommunities.org/id/london-borough-council/sutton,London Borough of Sutton,17/12/2021,10005473,4.68, AMAZON.CO.UK 7F0WM9EJ5,SPLIT - HANDWRITING TODAY: BK. 1 (HANDWRITING TODAY) (100%),Peoples Services,LAC - Education,A44280,
http://opendatacommunities.org/id/london-borough-council/sutton,London Borough of Sutton,20/12/2021,10005473,30.00, AMAZON.CO.UK 5P3M85N05,SPLIT - AMAZON.CO.UK GIFT CARD IN A SANTA AND RUDOLPH GREETING CARD (100%),Peoples Services,LAC - Education,A44280,
http://opendatacommunities.org/id/london-borough-council/sutton,London Borough of Sutton,20/12/2021,10005473,4.07, AMZNMKTPLACE,SPLIT - EASYNOTE A4 ARTISTS SKETCH PAD - 170GSM CARTRIDGE PAPER (14.92%),Peoples Services,LAC - Education,A44280,
http://opendatacommunities.org/id/london-borough-council/sutton,London Borough of Sutton,20/12/2021,10005473,4.07, AMZNMKTPLACE,SPLIT - EASYNOTE A4 ARTISTS SKETCH PAD - 170GSM CARTRIDGE PAPER (14.92%),Peoples Services,LAC - Education,A44280,
http://opendatacommunities.org/id/london-borough-council/sutton,London Borough of Sutton,20/12/2021,10005473,30.00, AMAZON.CO.UK UU5LM1Q65,SPLIT - AMAZON.CO.UK GIFT CARD IN A SANTA AND RUDOLPH GREETING CARD (100%),Peoples Services,LAC - Education,A44280,
http://opendatacommunities.org/id/london-borough-council/sutton,London Borough of Sutton,20/12/2021,10005473,30.00, AMAZON.CO.UK IY2U24MB5,SPLIT - AMAZON.CO.UK GIFT CARD IN A SANTA AND RUDOLPH GREETING CARD (100%),Peoples Services,LAC - Education,A44280,
http://opendatacommunities.org/id/london-borough-council/sutton,London Borough of Sutton,09/12/2021,10005473,22.08, ROYAL MAIL GROUP LTD,ROYAL MAIL POSTAGE FOR REWARDS,Peoples Services,LAC - Education,A44280,
http://opendatacommunities.org/id/london-borough-council/sutton,London Borough of Sutton,08/12/2021,10005473,252.00, WESTMINSTER FORUM PROJ,WESTMINSTER EDUCATION STAFF TRAINING COURSE,Peoples Services,LAC - Education,A44280,
